Workbook

Sheet Deckblatt
A1: Ermittlung der Lagerkapazität für Wirtschaftsdünger
H2: "Lagerka Thüringen"
H3: Version "2017-2.8"
A6: mitwirk. Unternehmen:
A8: Bearbeiter:
A10: Tel./email:
B13: Allgemeine Angaben:
B15: Name des Betriebes:
B17: Straße/Nummer:
B19: PLZ/Ort:
B21: Tel./email:
B23: Ansprechpartner:
B25: Unternehmensnummer: | E25: 160000000000
B27: Name / Ort der Anlage:
B29: Berechnung im Rahmen der/des
B31: Datum der Berechnung
B33: Jahresniederschlag in mm | O33: 1000
D43: Sächsisches Landesamt für Umwelt, Landwirtschaft und Geologie

Sheet Lager_Ri
A1: Flüssig- und Festmistanfall für Rinder | G1: =Deckblatt!H3 -> Version "2017-2.8" | H1: =Deckblatt!O31 ->  | I1: Silosickersaftanfall und -lagerkapazität | P1: =Deckblatt!H3 -> Version "2017-2.8" | Q1: =Deckblatt!O31 -> 
A2: Betrieb: | B2: =Deckblatt!E15 ->  | F2: Untern.-Nr.: | G2: =Deckblatt!E25 -> 160000000000 | I2: Betrieb: | J2: =B2 ->  | N2: Untern.-Nr.: | O2: =G2 -> 160000000000
A3: mitwirk. Untern.: | B3: =Deckblatt!E6 ->  | F3: Bearbeiter: | G3: =Deckblatt!E8 ->  | I3: mitwirkendes Unternehmen: | J3: =Deckblatt!E6 ->  | N3: Bearbeiter: | O3: =Deckblatt!E8 -> 
G4: Variante: | I4: Jahresniederschlag in mm | J4: (langjähriges Mittel) | L4: =Deckblatt!O33 -> 1000 | O4: Variante: | P4: =H4 -> 
B5: Tierplätze | C5: Tierplätze | D5: Tierplätze | E5: Tierplätze | F5: Tierplätze | G5: Anfall in m³ | H5: Anfall in m³ | J5: Silohöhe | K5: Silofläche | L5: Fläche der | M5: einmünd. | N5: Niederschlag | O5: Sickersaft- | P5: anzurechn.
B6: gesamt | C6: Gülle | D6: Tiefstreu mit | E6: Tiefstreu ohne | F6: Flachstreu | G6: Gülle/Jauche | H6: Festmist | I6: Bezeichnung der Siloanlage | K6: gesamt | L6: größten Kammer | M6: Flächen | N6: Anfall für | O6: behälter | P6: Siloraum
B7: darunter: | D7: sep. Fressber. | E7: sep. Fressber. | G7: 1 | H7: =Betrieb!A6 -> 1 | J7: in m | K7: in m² | L7: in m² | M7: in m² | N7: 1 | O7: mind. m³ | P7: in m³
A8: Milchkühe | G8: =((C8*(1.5+((((A10+4)*1000-4000)/1000)*(0.25/6))))+(D8*(1.5+((((A10+4)*1000-4000)/1000)*(0.25/6))))*0.55)*IF(C9="",(G7+5),IF(C9/30>(G7+5),(G7+5),C9/30)) -> 0 | H8: =(F8*VLOOKUP(A10,B55:I62,3)*VLOOKUP(H7,A92:B97,2)+E8*VLOOKUP(A10,B55:I62,IF(H7<3,3,5))+D8*VLOOKUP(A10,B55:I62,IF(H7<3,3,5))*0.45)*IF(H7=1,H7*1.1,H7) -> 0 | N8: =IF(K8>0,K8*$L$4*($N$7+2)*30/360*0.7/1000/2+M8*$L$4*($N$7+2)*30/360*0.7/1000,"") ->  | O8: =IF(L8=0,0,IF(J8*L8*0.03>3,J8*L8*0.03,3)) -> 0 | Q8: =L8*J8 -> 0
B9: =IF(C8+D8+E8+F8=B8,"Tage Stall:",(C8+D8+E8+F8-B8)) -> Tage Stall: | F9: 1 | G9: =IF(F9=1,F8*VLOOKUP(A10,B55:I62,4)*IF(C9="",(G7+5),IF(C9/30>(G7+5),(G7+5),C9/30)),F8*VLOOKUP(A10,B55:I62,4)*IF(C9="",(G7+5)/2,IF(C9/30>(G7+5),(G7+5)/2,C9/30/2))) -> 0 | O9: =IF(L9=0,0,IF(J9*L9*0.03>3,J9*L9*0.03,3)) -> 0 | Q9: =L9*J9 -> 0
A10: 10 | C10: Melkabwasser in Gülle einleiten ? | F10: 1 | G10: =IF(F10=1,(C8+D8+E8+F8)*8.5*30/1000*(G7+5),0) -> 0 | O10: 0 | Q10: 0
A11: trag. Färsen | G11: =(C11*I66+D11*H66)*IF(C12="",(G7+5),IF(C12/30>(G7+5),(G7+5),C12/30)) -> 0 | H11: =(D11*IF($H$7<3,D66*0.45,G66)+E11*IF($H$7<3,D66,F66)+F11*D66*VLOOKUP(H7,A92:B97,2))*IF($H$7=1,$H$7*1.1,$H$7) -> 0 | O11: 0 | Q11: 0
A12: über 2 Jahre | B12: =IF(C11+D11+E11+F11=B11,"Tage Stall:",(C11+D11+E11+F11-B11)) -> Tage Stall: | F12: 1 | G12: =IF(F12=2,F11*E66/2,F11*E66)*IF(C12="",(G7+5),IF(C12/30>(G7+5),(G7+5),C12/30)) -> 0 | O12: =IF(L12=0,0,IF(J12*L12*0.03>3,J12*L12*0.03,3)) -> 0 | Q12: 0
A13: Jungrinder | G13: =(C13*I67+D13*H67)*IF(C14="",(G7+5),IF(C14/30>(G7+5),(G7+5),C14/30)) -> 0 | H13: =(D13*IF($H$7<3,D67*0.45,G67)+E13*IF($H$7<3,D67,F67)+F13*D67*VLOOKUP(H7,A92:B97,2))*IF($H$7=1,$H$7*1.1,$H$7) -> 0 | O13: 0 | Q13: 0
A14: 1 - 2 Jahre | B14: =IF(C13+D13+E13+F13=B13,"Tage Stall:",(C13+D13+E13+F13-B13)) -> Tage Stall: | F14: 1 | G14: =IF(F14=2,F13*E67/2,F13*E67)*IF(C14="",(G7+5),IF(C14/30>(G7+5),(G7+5),C14/30)) -> 0 | O14: 0 | Q14: 0
A15: Jungrinder | G15: =(C15*I68+D15*H68)*IF(C16="",(G7+5),IF(C16/30>(G7+5),(G7+5),C16/30)) -> 0 | H15: =(D15*IF($H$7<3,D68*0.45,G68)+E15*IF($H$7<3,D68,F68)+F15*D68*VLOOKUP(H7,A92:B97,2))*IF($H$7=1,$H$7*1.1,$H$7) -> 0 | I15: Summe | K15: =SUM(K8:K14) -> 0 | N15: =SUM(N8:N14) -> 0 | O15: =SUM(O8:O14) -> 0 | Q15: =SUM(Q8:Q14) -> 0
A16: > 6 Mon. - 1 Jahr | B16: =IF(C15+D15+E15+F15=B15,"Tage Stall:",(C15+D15+E15+F15-B15)) -> Tage Stall: | F16: 1 | G16: =IF(F16=2,F15*E68/2,F15*E68)*IF(C16="",(G7+5),IF(C16/30>(G7+5),(G7+5),C16/30)) -> 0
A17: Kälber (o.Mastk.) | G17: =(C17*I69+D17*H69)*(G$7+5) -> 0 | H17: =(D17*IF($H$7<3,D69*0.45,G69)+E17*IF($H$7<3,D69,F69)+F17*D69*VLOOKUP(H7,A92:B97,2))*IF($H$7=1,$H$7*1.1,$H$7) -> 0 | I17: Name Lager | J17: Anzahl | K17: Behälter- | L17: Art der | M17: Untenentn. | N17: Oberfläche | O17: Grundfläche | P17: Höhe | Q17: Lagerraum | R17: Behälterh. | S17: Trapez-
A18: über 3 - 6 Monate | B18: =IF(C17+D17+E17+F17=B17,"",(C17+D17+E17+F17-B17)) ->  | G18: =F17*E69*(G$7+5) -> 0 | I18: Sickersaftbehälter | J18: Behälter | K18: form | L18: Abdeckung | M18: o. Pumpens. | N18: o. Durchmesser | O18: in m² | P18: in m | Q18: netto* in m³ | R18: verfügbar | S18: behölter | T18: Regenwasser
A19: Kälber (o.Mastk.) | G19: =(C19*I70+D19*H70)*(G7+5) -> 0 | H19: =(D19*IF($H$7<3,D70*0.45,G70)+E19*IF($H$7<3,D70,F70)+F19*D70*VLOOKUP(H7,A92:B97,2))*IF($H$7=1,$H$7*1.1,$H$7) -> 0 | K19: 1 | L19: 2 | M19: 2 | Q19: =J19*IF(K19=1,(N19/2)*(N19/2)*PI()*R19-T19,IF(K19=2,N19*R19-T19,S19-T19)) -> 0 | R19: =IF(P19=0,0,IF(M19=1,P19-0.2,P19-0.2-0.15)) -> 0 | S19: =IF(K19=3,(N19+O19+SQRT(N19*O19))*P19/3-IF(M19=1,N19*0.2,N19*0.2+O19*0.15),0) -> 0 | T19: =IF(OR(L19=1,P19=""),0,IF(K19=1,(N19/2)*(N19/2)*PI()*$L$4/1000*0.7*2*30/360,N19*$L$4/1000*0.7*2*30/360)) -> 0
A20: bis 3 Monate | B20: =IF(C19+D19+E19+F19=B19,"",(C19+D19+E19+F19-B19)) ->  | G20: =F19*E70*(G7+5) -> 0 | K20: 1 | L20: 2 | M20: 2 | Q20: =J20*IF(K20=1,(N20/2)*(N20/2)*PI()*R20-T20,IF(K20=2,N20*R20-T20,S20-T20)) -> 0 | R20: =IF(P20=0,0,IF(M20=1,P20-0.2,P20-0.2-0.15)) -> 0 | S20: =IF(K20=3,(N20+O20+SQRT(N20*O20))*P20/3-IF(M20=1,N20*0.2,N20*0.2+O20*0.15),0) -> 0 | T20: =IF(OR(L20=1,P20=""),0,IF(K20=1,(N20/2)*(N20/2)*PI()*$L$4/1000*0.7*2*30/360,N20*$L$4/1000*0.7*2*30/360)) -> 0
A21: Mastrinder (Bullen) | G21: =(C21*I76+D21*H76)*(G7+5) -> 0 | H21: =(D21*IF($H$7<3,D76*0.45,G76)+E21*IF($H$7<3,D76,F76)+F21*D76*VLOOKUP(H7,A92:B97,2))*IF($H$7=1,$H$7*1.1,$H$7) -> 0 | K21: 1 | L21: 2 | M21: 2 | Q21: 0 | R21: 0 | S21: 0 | T21: 0
A22: > 2 Jahre | B22: =IF(C21+D21+E21+F21=B21,"",(C21+D21+E21+F21-B21)) ->  | F22: 1 | G22: =IF(F22=2,F21*E76/2,F21*E76)*(G7+5) -> 0 | K22: 1 | L22: 2 | M22: 2 | Q22: 0 | R22: 0 | S22: 0 | T22: 0
A23: Mastrinder | G23: =(C23*I75+D23*H75)*(G7+5) -> 0 | H23: =(D23*IF($H$7<3,D75*0.45,G75)+E23*IF($H$7<3,D75,F75)+F23*D75*VLOOKUP(H7,A92:B97,2))*IF($H$7=1,$H$7*1.1,$H$7) -> 0 | K23: 1 | L23: 2 | M23: 2 | Q23: 0 | R23: 0 | S23: 0 | T23: 0
A24: 1-2Jahre | B24: =IF(C23+D23+E23+F23=B23,"",(C23+D23+E23+F23-B23)) ->  | F24: 1 | G24: =IF(F24=2,F23*E75/2,F23*E75)*(G7+5) -> 0 | K24: 1 | L24: 2 | M24: 2 | Q24: 0 | R24: 0 | S24: 0 | T24: 0
A25: Mastrinder | G25: =(C25*I74+D25*H74)*(G7+5) -> 0 | H25: =(D25*IF($H$7<3,D74*0.45,G74)+E25*IF($H$7<3,D74,F74)+F25*D74*VLOOKUP(H7,A92:B97,2))*IF($H$7=1,$H$7*1.1,$H$7) -> 0 | K25: 1 | L25: 2 | M25: 2 | Q25: 0 | R25: 0 | S25: 0 | T25: 0
A26: 6 Mon.- 1 Jahr | B26: =IF(C25+D25+E25+F25=B25,"",(C25+D25+E25+F25-B25)) ->  | F26: 1 | G26: =IF(F26=2,F25*E74/2,F25*E74)*(G7+5) -> 0 | I26: Summe | J26: =SUM(J19:J25) -> 0 | Q26: =SUM(Q19:Q25) -> 0
A27: Mastkälber | G27: =(C27*I73+D27*H73)*(G7+5)/IF(C28=1,2,1) -> 0 | H27: =(D27*IF($H$7<3,D73*0.45,G73)+E27*IF($H$7<3,D73,F73)+F27*D73*VLOOKUP(H7,A92:B97,2))*IF($H$7=1,$H$7*1.1,$H$7) -> 0
A28: über 3 - 6 Monate | B28: =IF(C27+D27+E27+F27=B27,"",(C27+D27+E27+F27-B27)) ->  | C28: 2 | F28: 1 | G28: =IF(F28=2,F27*E73/2,F27*E73)*(G7+5) -> 0 | I28: Die Lagerkapazität für Silosickersaft beträgt : | M28: =IF(Q15=0,"",Q26/Q15) ->  | N28: des gleichzeitig befüllten Siloraumes
A29: Mastkälber | G29: =(C29*I72+D29*H72)*(G7+5)/IF(C30=1,2,1) -> 0 | H29: =(D29*IF($H$7<3,D72*0.45,G72)+E29*IF($H$7<3,D72,F72)+F29*D72*VLOOKUP(H7,A92:B97,2))*IF($H$7=1,$H$7*1.1,$H$7) -> 0 | I29: dies entspricht : | M29: =IF(Q26>0,Q26/((N15+O15)/((N7+2)*30)),"") ->  | N29: Tagen = | P29: =IF(M29="","",M29/30) ->  | Q29: Monaten
A30: bis 3 Monate | B30: =IF(C29+D29+E29+F29=B29,"",(C29+D29+E29+F29-B29)) ->  | C30: 2 | G30: =F29*E72*(G7+5) -> 0
A31: Rosa-Kalbfleisch | G31: =(C31*I78+D31*H78)*(G$7+5) -> 0 | H31: =(D31*IF($H$7<3,D78*0.45,G78)+E31*IF($H$7<3,D78,F78)+F31*D78*VLOOKUP(H7,A92:B97,2))*IF($H$7=1,$H$7*1.1,$H$7) -> 0 | I31: Kommentar:
A32: 50 - 350 kg | G32: =F31*E78*(G$7+5) -> 0
A33: Fresseraufzucht | G33: =(C33*I79+D33*H79)*(G$7+5) -> 0 | H33: =(D33*IF($H$7<3,D79*0.45,G79)+E33*IF($H$7<3,D79,F79)+F33*D79*VLOOKUP(H7,A92:B97,2))*IF($H$7=1,$H$7*1.1,$H$7) -> 0
A34: 80 - 210 kg | G34: =F33*E79*(G$7+5) -> 0
A35: Mutter-/Ammen- | G35: =IF(B36=1,(C35*I81+D35*H81)*IF(E36="",(G7+5),IF(E36/30>(G7+5),(G7+5),(E36/30))),(C35*I83+D35*H83)*IF(E36="",(G7+5),IF(E36/30>(G7+5),(G7+5),(E36/30)))) -> 0 | H35: =IF(B36=1,(D35*IF(H7<3,D81*0.45,G81)+E35*IF(H7<3,D81,F81)+F35*D81*VLOOKUP(H7,A92:B97,2)),(D35*IF(H7<3,D83*0.45,G83)+E35*IF(H7<3,D83,F83)+F35*D83*VLOOKUP(H7,A92:B97,2)))*IF(H7=1,H7*1.1,H7) -> 0
A36: Kühe, 500 kg | B36: 1 | C36: Anz. Tage Stallhaltung: | F36: 1 | G36: =IF(B36=1,IF(F36=2,F35*E81/2,F35*E81),IF(F36=2,F35*E83/2,F35*E83))*IF(E36="",(G7+5),IF(E36/30>(G7+5),(G7+5),(E36/30))) -> 0
A37: Mutter-/Ammen- | G37: =IF(B38=1,(C37*I82+D37*H82)*IF(E38="",(G7+5),IF(E38/30>(G7+5),(G7+5),(E38/30))),(C37*I84+D37*H84)*IF(E38="",(G7+5),IF(E38/30>(G7+5),(G7+5),(E38/30)))) -> 0 | H37: =IF(B38=1,(D37*IF(H7<3,D82*0.45,G82)+E37*IF(H7<3,D82,F82)+F37*D82*VLOOKUP(H7,A92:B97,2)),(D37*IF(H7<3,D84*0.45,G84)+E37*IF(H7<3,D84,F84)+F37*D84*VLOOKUP(H7,A92:B97,2)))*IF(H7=1,H7*1.1,H7) -> 0
A38: Kühe, 700 kg | B38: 1 | C38: Anz. Tage Stallhaltung: | F38: 1 | G38: =IF(B38=1,IF(F38=2,F37*E82/2,F37*E82),IF(F38=2,F37*E84/2,F37*E84))*IF(E38="",(G7+5),IF(E38/30>(G7+5),(G7+5),(E38/30))) -> 0
A39: alle Bereiche | B39: zusätzl. Reinigungswasser (Liter/Tag) | G39: =F39*30/1000*(G7+5) -> 0
A40: Summe Rinder | B40: =SUM(B37,B35,B29,B27,B25,B23,B21,B19,B17,B15,B13,B11,B8) -> 0 | G40: =SUM(G8:G39) -> 0 | H40: =SUM(H37,H35,H29,H27,H25,H23,H21,H19,H17,H15,H13,H11,H8) -> 0
A41: Kommentar:
D50: Flachlauf-, | F50: Tiefstreustall | G50: Tiefstreustall | I50: Laufstall,
F51: ohne sep. | G51: mit sep. 55% | I51: Anbindestall
D52: Anbindestall | F52: Freßbereich | G52: Freßbereich
A53: Rinder | C53: Frischmist | D53: Frischmist
C54: t/Tier | D54: m³/Tier | E54: Jauche | F54: Dung | G54: Dung | H54: Gülle | I54: Gülle
A55: Milchkuh 5000 Liter | B55: 1 | C55: 1.15 | D55: 1.39 | E55: 0.49 | F55: 1.18 | G55: 0.53 | H55: 0.85 | I55: 1.54
A56: Milchkuh 6000 Liter | B56: 2 | C56: 1.2 | D56: 1.45 | E56: 0.5 | F56: 1.19 | G56: 0.54 | H56: 0.87 | I56: 1.58
A57: Milchkuh 7000 Liter | B57: 3 | C57: 1.23 | D57: 1.48 | E57: 0.51 | F57: 1.2 | G57: 0.54 | H57: 0.89 | I57: 1.62
A58: Milchkuh 8000 Liter | B58: 4 | C58: 1.25 | D58: 1.51 | E58: 0.53 | F58: 1.21 | G58: 0.54 | H58: 0.92 | I58: 1.67
A59: Milchkuh 9000 Liter | B59: 5 | C59: 1.32 | D59: 1.59 | E59: 0.55 | F59: 1.22 | G59: 0.55 | H59: 0.94 | I59: 1.71
A60: Milchkuh 10000 Liter | B60: 6 | C60: 1.33 | D60: 1.6 | E60: 0.57 | F60: 1.23 | G60: 0.55 | H60: 0.96 | I60: 1.75
A61: Milchkuh 11000 Liter | B61: 7 | C61: 1.37 | D61: 1.65 | E61: 0.58 | F61: 1.24 | G61: 0.56 | H61: 0.98 | I61: 1.79
A62: Milchkuh 12000 Liter | B62: 8 | C62: 1.42 | D62: 1.71 | E62: 0.6 | F62: 1.25 | G62: 0.56 | H62: 1.01 | I62: 1.84
A63: Milchkuh 13000 Liter | B63: 9 | C63: 1.46 | D63: 1.76 | E63: 0.62 | F63: 1.26 | G63: 0.57 | H63: 1.03 | I63: 1.88
A64: Milchkuh 14000 Liter | B64: 10 | C64: 1.5 | D64: 1.81 | E64: 0.63 | F64: 1.27 | G64: 0.57 | H64: 1.06 | I64: 1.92
A65: Melkhausabwasser | I65: 0.255
A66: Färsen über 2 Jahre | B66: 1 | C66: 1.03 | D66: 1.24 | E66: 0.38 | F66: 0.96 | G66: 0.43 | H66: 0.73 | I66: 1.32
A67: Jungrinder 1-2 Jahre | B67: 0.7 | C67: 0.85 | D67: 1.02 | E67: 0.27 | F67: 0.77 | G67: 0.35 | H67: 0.55 | I67: 1
A68: Jungrinder >6 Monate-1Jahr | B68: 0.43 | C68: 0.52 | D68: 0.63 | E68: 0.13 | F68: 0.47 | G68: 0.21 | H68: 0.31 | I68: 0.56
A69: Kälber 3-6 Monate | B69: 0.25 | C69: 0.34 | D69: 0.41 | E69: 0.05 | F69: 0.31 | G69: 0.14 | H69: 0.19 | I69: 0.35
A70: Kälber 0-3 Monate | B70: 0.14 | C70: 0.26 | D70: 0.31 | E70: 0.03 | F70: 0.23 | G70: 0.1 | H70: 0.12 | I70: 0.21
A72: Mastkälber unter 3 Monaten | B72: 0.2 | C72: 0.22 | D72: 0.27 | E72: 0.07 | F72: 0.21 | G72: 0.09 | H72: 0.22 | I72: 0.4
A73: Mastkälber 3- 6 Monate | B73: 0.33 | C73: 0.23 | D73: 0.28 | E73: 0.11 | F73: 0.22 | G73: 0.1 | H73: 0.27 | I73: 0.5
A74: Männliche Rinder über 6 Monate bis 1 Jahr | B74: 0.6 | C74: 0.38 | D74: 0.46 | E74: 0.24 | F74: 0.4 | G74: 0.18 | H74: 0.35 | I74: 0.63
A75: Männliche Rinder über 1 Jahr bis 2 Jahre | B75: 1 | C75: 0.5 | D75: 0.6 | E75: 0.42 | F75: 0.52 | G75: 0.23 | H75: 0.41 | I75: 0.74
A76: Männliche Rinder über 2 Jahre (einschl. Zuchtbullen) | B76: 1.2 | C76: 0.64 | D76: 0.77 | E76: 0.45 | F76: 0.67 | G76: 0.3 | H76: 0.55 | I76: 1
A78: Rosa-Kalbfleisch | B78: 0.4 | C78: 0.3 | D78: 0.36 | E78: 0.04 | F78: 0.27 | G78: 0.12 | H78: 0.18 | I78: 0.33
A79: Fresseraufzucht | B79: 0.29 | C79: 0.38 | D79: 0.46 | E79: 0.04 | F79: 0.35 | G79: 0.16 | H79: 0.25 | I79: 0.46
A81: Mutter- und Ammenkühe m.0,9 Kalb | C81: 1 | D81: 1.2 | E81: 0.46 | F81: 1 | G81: 0.45 | H81: 0.73 | I81: 1.33
A82: Mutter- und Ammenkühe m.0,9 Kalb | C82: 1.32 | D82: 1.59 | E82: 0.5 | F82: 1.35 | G82: 0.6 | H82: 0.92 | I82: 1.67
A83: Mutter- und Ammenkühe | B83: 1.2 | C83: 0.73 | D83: 0.88 | E83: 0.42 | F83: 0.74 | G83: 0.33 | H83: 0.62 | I83: 1.13
A84: Mutter- und Ammenkühe | B84: 1.2 | C84: 1.05 | D84: 1.27 | E84: 0.46 | F84: 1.1 | G84: 0.5 | H84: 0.8 | I84: 1.46
B86: 500 kg | C86: Frischmist | D86: ja | E86: 33 Tage | F86: 5000 | G86: Rundbeh.
B87: 700 kg | C87: Tiefstreu | D87: nein | E87: 2 Monate | F87: 6000 | G87: Rechteckbeh.
E88: 3 Monate | F88: 7000 | G88: Re.-Trapez.
B89: Milchmast | D89: =IF(D6=1,"Flachstreu","FB Gülle") -> FB Gülle | E89: 4 Monate | F89: 8000
B90: Weitermast | D90: =IF(D6=1,"Tretmist","FB Mist") -> FB Mist | E90: 5 Monate | F90: 9000 | G90: wasserdicht
D91: =IF(D6=1,"Teiltiefstreu","o.sep. FB") -> o.sep. FB | E91: 6 Monate | F91: 10000 | G91: wasserdurchl.
A92: 1 | B92: 1 | E92: 7 Monate | F92: 11000
A93: 2 | B93: 1 | C93: 0,9 Kalb | E93: 8 Monate | F93: 12000 | G93: ja
A94: 3 | B94: 0.866 | C94: ohne Kalb | E94: 9 Monate | F94: 13000 | G94: nein
A95: 4 | B95: 0.8 | E95: 10 Monate | F95: 14000
A96: 5 | B96: 0.76 | E96: 11 Monate
A97: 6 | B97: 0.73 | E97: 12 Monate
E100: Flachstreu
E101: Tretmist
B16369: =Tipla_Mi!$C$26 -> 106
B16372: =Tipla_Mi!$G$33 -> 15
B16374: =Tipla_Mi!$G$35+Tipla_Mi!$G$37 -> 40
B16376: =Tipla_Mi!$G$39 -> 22
B16378: =Tipla_Mi!$G$41 -> 11

Sheet Lager_Schwein
A1: Flüssig- und Festmistanfall für Schweine | F1: =Deckblatt!H3 -> Version "2017-2.8" | G1: =Deckblatt!O31 -> 
A2: Betrieb: | B2: =Deckblatt!E15 ->  | E2: Untern.-Nr.: | F2: =Deckblatt!E25 -> 160000000000
A3: mitwirkendesUnternehmen: | B3: =Deckblatt!E6 ->  | E3: Bearbeiter: | F3: =Deckblatt!E8 -> 
F4: Variante: | G4: 1
B5: Tierplätze | C5: Anzahl | D5: Anzahl | E5: Anzahl | F5: Anfall in m³ | G5: Anfall in m³
A6: Produktionsabschnitt | C6: Tierpl. | D6: Tierpl. | E6: Tierpl. | F6: Gülle/Jauche | G6: Festmist
B7: gesamt | C7: Gülle | D7: Tiefstr. | E7: Flachstr. | F7: 1 | G7: =Betrieb!A6 -> 1
A8: Jungsaueneingliederung | F8: =C8*G53*(F7+5) -> 0 | G8: =(IF(G7<3,D8*D53,D8*F53)+E8*D53*VLOOKUP(G7,C66:D71,2))*IF(G7=1,G7*1.1,G7) -> 0
A9: 95-135 kg | B9: =IF(C8+D8+E8=B8,"",C8+D8+E8-B8) ->  | F9: =E8*E53*(F7+5) -> 0
A10: Zuchtsauen | F10: =C10*G51*(F7+5) -> 0 | G10: =(IF(G7<3,D10*D51,D10*F51)+E10*D51*VLOOKUP(G7,C66:D71,2))*IF(G7=1,G7*1.1,G7) -> 0
A11: ab 1. Belegung | B11: =IF(C10+D10+E10=B10,"",C10+D10+E10-B10) ->  | F11: =E10*E51*(F7+5) -> 0
A12: Zuchtsauen, laktierend | F12: =C12*G52*(F7+5) -> 0 | G12: =(IF(G7<3,D12*D52,D12*F52)+E12*D52*VLOOKUP(G7,C66:D71,2))*IF(G7=1,G7*1.1,G7) -> 0
A13: mit Ferkeln bis 8 kg | B13: =IF(C12+D12+E12=B12,"",C12+D12+E12-B12) ->  | F13: =E12*E52*(F7+5) -> 0
A14: Aufzuchtferkel | F14: =C14*G56*(F7+5) -> 0 | G14: =(IF(G7<3,D14*D56,D14*F56)+E14*D56*VLOOKUP(G7,C66:D71,2))*IF(G7=1,G7*1.1,G7) -> 0
A15: 8 - 28 kg | B15: =IF(C14+D14+E14=B14,"",C14+D14+E14-B14) ->  | F15: =E14*E56*(F7+5) -> 0
A16: Eber | F16: =C16*G54*(F7+5) -> 0 | G16: =(IF(G7<3,D16*D64,D16*F54)+E16*D54*VLOOKUP(G7,C66:D71,2))*IF(G7=1,G7*1.1,G7) -> 0
A17: ab 50 kg | B17: =IF(C16+D16+E16=B16,"",C16+D16+E16-B16) ->  | F17: =E16*E54*(F7+5) -> 0
A18: Jungsauenaufzucht | F18: =C18*G57*(F7+5) -> 0 | G18: =(IF(G7<3,D18*D57,D18*F57)+E18*D57*VLOOKUP(G7,C66:D71,2))*IF(G7=1,G7*1.1,G7) -> 0
A19: 28-95 kg | B19: =IF(C18+D18+E18=B18,"",C18+D18+E18-B18) ->  | F19: =E18*E57*(F7+5) -> 0
A20: Mastschweine 28-115kg | F20: =C20*G59*(F7+5) -> 0 | G20: =(IF(G7<3,D20*D59,D20*F59)+E20*D59*VLOOKUP(G7,C66:D71,2))*IF(G7=1,G7*1.1,G7) -> 0
A21: Trockenfütterung | B21: =IF(C20+D20+E20=B20,"",C20+D20+E20-B20) ->  | F21: =(E20*E59)*(F7+5) -> 0
A22: Mastschweine 28-115kg | F22: =G60*C22*(F7+5) -> 0 | G22: =(IF(G7<3,D22*D60,D22*F60)+E22*D60*VLOOKUP(G7,C66:D71,2))*IF(G7=1,G7*1.1,G7) -> 0
A23: Flüssigfütterung | B23: =IF(C22+D22+E22=B22,"",C22+D22+E22-B22) ->  | F23: =(E22*E60)*(F7+5) -> 0
A24: Summe Schweine | B24: =B8+B10+B12+B14+B16+B18+B20+B22 -> 0 | F24: =SUM(F8:F23) -> 0 | G24: =SUM(G22,G18,G14,G20,G12,G10,G8,G16) -> 0
A26: Kommentar:
C49: Frischmist | D49: Frischmist | F49: Tiefstreu
C50: t/Tier | D50: Dung | E50: Jauche | F50: Dung | G50: Gülle
A51: Zuchtsauen ab 1. Belegung | B51: 0.3 | C51: 0.24 | D51: 0.27 | E51: 0.08 | F51: 0.2 | G51: 0.28 | I51: =G51/B51 -> 0.9333333333
A52: Zuchtsauen laktierend | B52: 0.05 | C52: 0.49 | D52: 0.54 | E52: 0.18 | F52: 0.4 | G52: 0.53 | I52: =G52/B52 -> 10.6
A53: Jungsaueneingliederung | B53: 0.23 | C53: 0.155 | D53: 0.17 | E53: 0.083 | F53: 0.15 | G53: 0.21 | I53: =G53/B53 -> 0.9130434783
A54: Eber ab 50 kg | B54: 0.3 | C54: 0.15 | D54: 0.17 | E54: 0.125 | F54: 0.3 | G54: 0.3 | I54: =G54/B54 -> 1
A56: Ferkel 8 bis 28 kg | B56: 0.03 | C56: 0.031 | D56: 0.034 | E56: 0.025 | F56: 0.03 | G56: 0.05 | I56: =G56/B56 -> 1.666666667
A57: Jungsauenaufzucht 28-95 kg | B57: 0.07 | C57: 0.115 | D57: 0.13 | E57: 0.05 | F57: 0.13 | G57: 0.15 | I57: =G57/B57 -> 2.142857143
A59: Mastschweine 28- 115 kg Trockenfütterung | B59: 0.13 | C59: 0.09 | D59: 0.1 | E59: 0.05 | F59: 0.1 | G59: 0.133 | I59: =G59/B59 -> 1.023076923
A60: Mastschweine 28 - 115 kg Flüssigfütterung | B60: 0.13 | C60: 0.09 | D60: 0.1 | E60: 0.06 | F60: 0.1 | G60: 0.163
B62: Trocken- oder Breifutter mit Tränke im Trog
B63: Flüssigfütterung und/oder Tränke in der Bucht
A64: 33 Tage
A65: 2 Monate
A66: 3 Monate | B66: ja | C66: 1 | D66: 1
A67: 4 Monate | B67: nein | C67: 2 | D67: 1
A68: 5 Monate | C68: 3 | D68: 0.866
A69: 6 Monate | C69: 4 | D69: 0.8
A70: 7 Monate | C70: 5 | D70: 0.76
A71: 8 Monate | C71: 6 | D71: 0.73
A72: 9 Monate
A73: 10 Monate
A74: 11 Monate
A75: 12 Monate
D84: Rundbehälter | F84: 20 cm Strohhäcksel
D85: Rechteckbeh. | F85: 10 cm Strohhäcksel | H85: ja
D86: Re.-Trapezbeh. | F86: Pegülith | H86: nein
D87: Staukanal | F87: nat. Schwimmdecke
D88: Güllekeller | F88: wasserdichter Abd.

Sheet Coferm
A1: Wirtschaftsdüngeranfall aus Kofermenten | G1: =Deckblatt!H3 -> Version "2017-2.8" | H1: =Deckblatt!O31 -> 
A2: Betrieb: | C2: =Deckblatt!E15 ->  | F2: Untern.-Nr.: | G2: =Deckblatt!E25 -> 160000000000
A3: mitwirk. Unternehmen: | C3: =Deckblatt!E6 ->  | F3: Bearbeiter: | G3: =Deckblatt!E8 -> 
A4: Kofermente 1) | C4: TS in % | D4: Einheit | E4: Menge je Jahr in t | F4: Fugat in m³/ t Koferment | G4: Fugat / Jahr in m³
A5: Festmist frisch | C5: 25 | D5: t | F5: 0.93 | G5: =F5*E5 -> 0
A6: Trockenkot (Geflügel) | C6: 60 | D6: t | F6: 0.76 | G6: =F6*E6 -> 0
A7: Maissilage | C7: 32 | D7: t | F7: 0.76 | G7: =F7*E7 -> 0
A8: Gras- / Ganzpflanzensilage | C8: 40 | D8: t | F8: 0.7523035714 | G8: 0
A9: Lieschkolbensilage LKS | C9: 45 | D9: t | F9: 0.6302928571 | G9: 0
A10: Getreide (Körner), Rapssaat | C10: 87 | D10: t | F10: 0.2488696429 | G10: 0
A11: CornCrobMix | C11: 65 | D11: t | F11: 0.45 | G11: 0
A12: Zuckerrüben | C12: 23 | D12: t | F12: 0.7996553571 | G12: 0
A13: Futterrüben | C13: 15 | D13: t | F13: 0.9 | G13: 0
A14: Kartoffeln | C14: 22 | D14: t | F14: 0.8 | G14: 0
A15: Grünmais | C15: 28 | D15: t | F15: 0.7976 | G15: 0
A16: Kleegras | C16: 17 | D16: t | F16: 0.8955678571 | G16: 0
A17: Rotklee Pflanze | C17: 20 | D17: t | F17: 0.8813857143 | G17: 0
A18: Wiesengras | C18: 20 | D18: t | F18: 0.8672178571 | G18: 0
A19: Raps Ganzpflanze | C19: 14 | D19: t | F19: 0.90265 | G19: 0
A20: Zuckerhirse, Sudangras | C20: 18 | D20: t | F20: 0.89 | G20: 0
A21: Stroh | C21: 86 | D21: t | F21: 0.6 | G21: 0
A22: Wiesenheu | C22: 86 | D22: t | F22: 0.4791285714 | G22: 0
A23: Kartoffelschlempe frisch | C23: 7 | D23: t | F23: 1 | G23: 0
A24: Altbrot | C24: 65 | D24: t | F24: 0.37 | G24: =F24*E24 -> 0
A25: Backabfälle | C25: 87 | D25: t | F25: 0.1525375 | G25: 0
A26: Bierhefe | C26: 10 | D26: t | F26: 0.9274535714 | G26: 0
A27: Biertreber | C27: 24 | D27: t | F27: 0.8503321429 | G27: 0
A28: Kartoffelflocken, -schrot | C28: 88 | D28: t | F28: 0.2556732143 | G28: 0
A29: Kartoffelpreßpülpe | C29: 18 | D29: t | F29: 0.8392857143 | G29: 0
A30: Kartoffelschälabfall | C30: 11 | D30: t | F30: 0.9097785714 | G30: 0
A31: Leinenextraktionsschrot | C31: 88 | D31: t | F31: 0.3632982143 | G31: 0
A32: Magermilch, Molke | C32: 8 | D32: t | F32: 1 | G32: 0
A33: Malzkeime | C33: 92 | D33: t | F33: 0.421675 | G33: 0
A34: Melasse | C34: 77 | D34: t | F34: 0.3914857143 | G34: 0
A35: Milchzuckermelasse | C35: 30 | D35: t | F35: 0.7939214286 | G35: 0
A36: Molke teilentzu. Trocken | C36: 95 | D36: t | F36: 0.3286642857 | G36: 0
A37: Obsttrester Apfel | C37: 22 | D37: t | F37: 0.8593714286 | G37: 0
A38: Rapsextraktionsschrot | C38: 88 | D38: t | F38: 0.4280714286 | G38: 0
A39: Rapskuchen kaltpr. 15 % Fett | C39: 91 | D39: t | F39: 0.3457071429 | G39: 0 | H39: Berechnung eigener Fugatfaktoren
A40: Weizenkleie | C40: 88 | D40: t | F40: 0.4484285714 | G40: =F40*E40 -> 0
A41: Weizennachmehl | C41: 88 | D41: t | F41: 0.2530803571 | G41: 0
A42: Zuckerrübennaßschnitzel | C42: 13 | D42: t | F42: 0.9053714286 | G42: 0 | H42: Gas- | I42: Methan-
A43: Zuckerrübenpreßschnitzel | C43: 20 | D43: t | F43: 0.8330857143 | G43: 0 | H43: ertrag | I43: gehalt
A44: Zuckerrübentrockenschnitzel | C44: 91 | D44: t | F44: 0.1880071429 | G44: 0 | H44: in m³/t | I44: in %
A45: eigenes Substrat | D45: t | F45: =IF(1-((I45*16+(100%-I45)*44)*(1000/22.4)*H45/1000000)<0,0,1-((I45*16+(100%-I45)*44)*(1000/22.4)*H45/1000000)) -> 1 | G45: 0
A46: eigenes Substrat | D46: t | F46: =IF(1-((I46*16+(100%-I46)*44)*(1000/22.4)*H46/1000000)<0,0,1-((I46*16+(100%-I46)*44)*(1000/22.4)*H46/1000000)) -> 1 | G46: 0
A47: eigenes Substrat | D47: t | F47: =IF(1-((I47*16+(100%-I47)*44)*(1000/22.4)*H47/1000000)<0,0,1-((I47*16+(100%-I47)*44)*(1000/22.4)*H47/1000000)) -> 1 | G47: 0
A48: Summe | G48: =SUM(G5:G47) -> 0
A49: 1) Bei überwiegender Vergärung von Substraten mit hohem Trockensubstanzgehalt kann es erforderlich sein, Prozesswasser einzusetzen. Dieses Prozesswasser ist bei der Berechnung der Lagerkapazität zusätzlich zu berücksichtigen.
A50: Gülle-/Gärrestseparation
A51: Inputmaterial in m³ je Jahr | B51: TS-Gehalt Inputmaterial in % | C51: TS-Gehalt Feststoffe in % | D51: TS-Gehalt Flüssig-phase in % | E51: Abscheide- grad in % | F51: Flüssigphase in m³ je Jahr | G51: Feststoffe in t je Jahr | H51: Feststoffe in m³ je Jahr
E52: =IF(A52="","",(B52-D52)/(C52-D52)) ->  | F52: =IF(A52="","",A52-G52) ->  | G52: =IF(A52="","",A52*(B52-D52)/(C52-D52)) ->  | H52: =IF(A52="","",G52/0.75) -> 
E53: =IF(A53="","",(B53-D53)/(C53-D53)) ->  | F53: =IF(A53="","",A53-G53) ->  | G53: =IF(A53="","",A53*(B53-D53)/(C53-D53)) ->  | H53: =IF(A53="","",G53/0.75) -> 
F54: =IF(A54="","",A54-G54) ->  | G54: =IF(A54="","",A54*(B54-D54)/(C54-D54)) ->  | H54: =IF(A54="","",G54/0.75) -> 
F55: =IF(A55="","",A55-G55) ->  | G55: =IF(A55="","",A55*(B55-D55)/(C55-D55)) ->  | H55: =IF(A55="","",G55/0.75) -> 
F56: =IF(A56="","",A56-G56) ->  | G56: =IF(A56="","",A56*(B56-D56)/(C56-D56)) ->  | H56: =IF(A56="","",G56/0.75) -> 
A57: =SUM(A52:A56) -> 0 | F57: =SUM(F52:F56) -> 0 | G57: =SUM(G52:G56) -> 0 | H57: =SUM(H52:H56) -> 0

Sheet Betrieb
A1: Berechnung der Festmistlagerkapazität für den Gesamtbetrieb | K1: =Deckblatt!H3 -> Version "2017-2.8"
A2: Betrieb: | B2: =Deckblatt!E15 ->  | G2: Untern.-Nr.: | I2: =Deckblatt!E25 -> 160000000000 | K2: =Deckblatt!O31 -> 
A3: mitwirk. Unternehmen: | B3: =Deckblatt!E6 ->  | G3: Bearbeiter: | I3: =Deckblatt!E8 -> 
A4: Jahresniederschlag in mm | C4: (langjähriges Mittel) | F4: =Deckblatt!O33 -> 1000 | G4: Variante:
A5: Anfall an Festmist für | B5: Rinder | G5: Schweine
A6: 1 | B6: Schafe | G6: Ziegen
B7: Pferde | G7: Mehr-/ Minderanfall
F8: Summe Anfall | J8: =SUM(E5:E7)+J5+J6+J7 -> 0 | K8: m³
A9: Vorhandene Läger | B9: Anzahl | C9: Länge | D9: Breite | E9: od. altern. | F9: Stapelhöhe | G9: Lagerung | H9: Schiebefl. | I9: Kapazität | J9: Oberfl.- | K9: Zuordnung | N9: tägl. Anfall | O9: Lager Stall | P9: Kap sonst | Q9: Anf | R9: Tage Stall | S9: =I20/(J8/(A6*IF(A6=1,33,30))) -> 
A10: (incl.Tiefstreu im Stall) | B10: Behält. | C10: in m | D10: in m | E10: Fläche i. m² | F10: in m | G10: Überdachung | H10: in m² | I10: in m³ | J10: wasser m³ | K10: Lagerstätte | N10: =E5/(A6*IF(A6=1,33,30)) -> 0 | O10: =SUMIFS(I$11:I$19,G$11:G$19,3,K$11:K$19,1) -> 0 | P10: =SUMIFS(I$11:I$19,G$11:G$19,1,K$11:K$19,1)+SUMIFS(I$11:I$19,G$11:G$19,2,K$11:K$19,1) -> 0 | Q10: =IF(R10<A6*IF(A6=1,33,30),E5,0) -> 0 | R10: =IF(E5=0,0,IF(A6=1,O10/(E5/(A6*33)),O10/(E5/(A6*30)))) -> 0 | S10: Rinder
G11: 2 | I11: =IF(E11=0,C11*D11*F11*B11,E11*F11*B11) -> 0 | J11: =IF(G11=2,IF(E11=0,(B11*C11*D11+H11)*$F$4/1000*($A$41+5)*30/360*0.7,(B11*E11+H11)*$F$4/1000*($A$41+5)*30/360*0.7),H11*$F$4/1000*($A$41+5)*30/360*0.7) -> 0 | K11: 6 | N11: =J5/(A6*IF(A6=1,33,30)) -> 0 | O11: =SUMIFS(I$11:I$19,G$11:G$19,3,K$11:K$19,2) -> 0 | P11: =SUMIFS(I$11:I$19,G$11:G$19,1,K$11:K$19,2)+SUMIFS(I$11:I$19,G$11:G$19,2,K$11:K$19,2) -> 0 | Q11: =IF(R11<A6*IF(A6=1,33,30),J5,0) -> 0 | R11: =IF(J5=0,0,O11/(J5/(A6*IF(A6=1,33,30)))) -> 0 | S11: Schweine
G12: 2 | I12: 0 | J12: 0 | K12: 6 | N12: =E6/(A6*IF(A6=1,33,30)) -> 0 | O12: =SUMIFS(I$11:I$19,G$11:G$19,3,K$11:K$19,3) -> 0 | P12: =SUMIFS(I$11:I$19,G$11:G$19,1,K$11:K$19,3)+SUMIFS(I$11:I$19,G$11:G$19,2,K$11:K$19,3) -> 0 | Q12: =IF(R12<A6*IF(A6=1,33,30),E6,0) -> 0 | R12: =IF(E6=0,0,O12/(E6/(A6*IF(A6=1,33,30)))) -> 0 | S12: Schafe
G13: 2 | I13: 0 | J13: =IF(G13=2,IF(E13=0,(B13*C13*D13+H13)*$F$4/1000*($A$41+5)*30/360*0.7,(B13*E13+H13)*$F$4/1000*($A$41+5)*30/360*0.7),H13*$F$4/1000*($A$41+5)*30/360*0.7) -> 0 | K13: 6 | N13: =J6/(A6*IF(A6=1,33,30)) -> 0 | O13: =SUMIFS(I$11:I$19,G$11:G$19,3,K$11:K$19,4) -> 0 | P13: =SUMIFS(I$11:I$19,G$11:G$19,1,K$11:K$19,4)+SUMIFS(I$11:I$19,G$11:G$19,2,K$11:K$19,4) -> 0 | Q13: =IF(R13<A6*IF(A6=1,33,30),J6,0) -> 0 | R13: =IF(J6=0,0,O13/(J6/(A6*IF(A6=1,33,30)))) -> 0 | S13: Ziegen
G14: 2 | I14: 0 | J14: 0 | K14: 6 | N14: =E7/(A6*IF(A6=1,33,30)) -> 0 | O14: =SUMIFS(I$11:I$19,G$11:G$19,3,K$11:K$19,5) -> 0 | P14: =SUMIFS(I$11:I$19,G$11:G$19,1,K$11:K$19,5)+SUMIFS(I$11:I$19,G$11:G$19,2,K$11:K$19,5) -> 0 | Q14: =IF(R14<A6*IF(A6=1,33,30),E7,0) -> 0 | R14: =IF(E7=0,0,O14/(E7/(A6*IF(A6=1,33,30)))) -> 0 | S14: Pferde
G15: 2 | I15: 0 | J15: 0 | K15: 6 | R15: 0 | S15: alle Kategorien
G16: 2 | I16: 0 | J16: 0 | K16: 6 | N16: =SUM(N10:N14) -> 0 | O16: =SUMIFS(I$11:I$19,G$11:G$19,1,K$11:K$19,6)+SUMIFS(I$11:I$19,G$11:G$19,2,K$11:K$19,6) -> 0 | P16: =SUMIFS(I$11:I$19,G$11:G$19,1,K$11:K$19,6)+SUMIFS(I$11:I$19,G$11:G$19,2,K$11:K$19,6) -> 0 | Q16: =SUM(Q10:Q14)+J7 -> 0 | R16: =IF(Q16=0,0,O17/(Q16/(A6*IF(A6=1,33,30)))) -> 0 | S16: alle Kategorien
G17: 2 | I17: 0 | J17: 0 | K17: 6 | O17: =I20-SUMIFS(O10:O16,Q10:Q16,0) -> 0 | P17: =SUM(P10:P16) -> 0 | Q17: =Q16/(A6*IF(A6=1,33,30)) -> 0 | R17: =IF(Q17=0,0,O17/Q17) -> 0 | S17: Summe
G18: 2 | I18: 0 | J18: 0 | K18: 6 | Q18: Tage Stall Min | R18: =MIN(IF(R10:R15>0,R10:R15)) -> 0
G19: 2 | I19: 0 | J19: 0 | K19: 6 | Q19: Tage 1 | R19: =IF(AND(R17>0,R17<S9),R17,S9) -> 
A20: Summe | I20: =SUM(I11:I19) -> 0 | J20: =SUM(J11:J19) -> 0 | Q20: Tage 2 | R20: =IF(AND(R17=0,Q17>0),0,R19) -> 
A21: Die Lagerkapazität für Festmist von Huf- u. Klauentieren ist ausreichend für: | G21: =IF(J8>0,R20,"") ->  | H21: Tage = | I21: =IF(G21="","",(G21/30)) ->  | J21: Monate
A22: 2 | B22: Geflügel / Kaninchen | G22: Mehr-/Minderanfall | J22: =E22+I22 -> 0
G23: 2 | I23: =IF(E23=0,C23*D23*F23*B23,E23*F23*B23) -> 0 | J23: =IF(G23=2,IF(E23=0,(B23*C23*D23+H23)*$F$4/1000*($A$41+5)*30/360*0.7,(B23*E23+H23)*$F$4/1000*($A$41+5)*30/360*0.7),H23*$F$4/1000*($A$41+5)*30/360*0.7) -> 0 | T23: Dungpl. | U23: OF-wasser
G24: 2 | I24: =IF(E24=0,C24*D24*F24*B24,E24*F24*B24) -> 0 | J24: =IF(G24=2,IF(E24=0,(B24*C24*D24+H24)*$F$4/1000*($A$41+5)*30/360*0.7,(B24*E24+H24)*$F$4/1000*($A$41+5)*30/360*0.7),H24*$F$4/1000*($A$41+5)*30/360*0.7) -> 0 | M24: =SUMIF(G11:G19,1,I11:I19) -> 0 | T24: =SUMIF(G11:G19,2,I11:I19) -> 0 | U24: =H20+I58+J58 -> 0
G25: 2 | I25: =IF(E25=0,C25*D25*F25*B25,E25*F25*B25) -> 0 | J25: =IF(G25=2,IF(E25=0,(B25*C25*D25+H25)*$F$4/1000*($A$41+5)*30/360*0.7,(B25*E25+H25)*$F$4/1000*($A$41+5)*30/360*0.7),H25*$F$4/1000*($A$41+5)*30/360*0.7) -> 0
A26: Summe | I26: =SUM(I23:I25) -> 0 | J26: =SUM(J23:J25) -> 0 | U26: Silowasser
A27: Die Lagerkapazität für Geflügelfestmist ist ausreichend für: | G27: =IF(J22>0,I26/(J22/((A22+3)*30)),"") ->  | H27: Tage = | I27: =IF(G27="","",(G27/30)) ->  | J27: Monate | U27: =IF(J38>0,Lager_Ri!$N$15,0) -> 0
A28: 1 | B28: Gülle-/Gärrestfeststoffe | G28: Mehr-/Minderanfall | J28: =E28+I28 -> 0 | U28: sickersaft
G29: 2 | I29: =IF(E29=0,C29*D29*F29*B29,E29*F29*B29) -> 0 | J29: =IF(G29=2,IF(E29=0,(B29*C29*D29+H29)*$F$4/1000*($A$41+5)*30/360*0.7,(B29*E29+H29)*$F$4/1000*($A$41+5)*30/360*0.7),H29*$F$4/1000*($A$41+5)*30/360*0.7) -> 0 | M29: =IF(G30=1,I30,0) -> 0 | T29: =IF(G30=2,I30,0) -> 0 | U29: =IF(J38>0,Lager_Ri!$O$15,0) -> 0
G30: 2 | I30: =IF(E30=0,C30*D30*F30*B30,E30*F30*B30) -> 0 | J30: =IF(G30=2,IF(E30=0,(B30*C30*D30+H30)*$F$4/1000*($A$41+5)*30/360*0.7,(B30*E30+H30)*$F$4/1000*($A$41+5)*30/360*0.7),H30*$F$4/1000*($A$41+5)*30/360*0.7) -> 0
A31: Summe | I31: =SUM(I29:I30) -> 0 | J31: =SUM(J29:J30) -> 0
A32: Die Lagerkapazität für Gülle- und Gärrestfeststoffe ist ausreichend für: | G32: =IF(J28>0,I31/(J28/((A28+5)*30)),"") ->  | H32: Tage = | I32: =IF(G32="","",(G32/30)) ->  | J32: Monate
A33: Kommentar:
A34: Berechnung der Flüssigmistlagerkapazität für den Gesamtbetrieb | K34: =Deckblatt!H3 -> Version "2017-2.8"
A35: Betrieb: | B35: =B2 ->  | G35: Untern.-Nr.: | I35: =I2 -> 160000000000 | K35: =K2 -> 
A36: mitwirk. Unternehen: | B36: =Deckblatt!E6 ->  | G36: Bearbeiter: | I36: =Deckblatt!E8 -> 
A37: Jahresniederschlag in mm (langjähriges Mittel) | D37: =F4 -> 1000 | G37: Variante: | I37: =I4 -> 
A38: Anfall an | B38: Rinder | F38: Silagesickersaft d. Siloanlagen
A39: Flüssigmist | B39: Schweine | F39: Gülle-/Gärrest flüssige Phase
A40: für | B40: Geflügel | F40: Mehr- oder Minderanfall
A41: 1 | B41: Schafe/Pferde | F41: Summe Anfall | J41: =SUM(D38:D41,J38,J39)+J40 -> 0
F42: Niederschlag auf die Dunglager | J42: =(J20+J26+J31) -> 0
A44: vorhandene Lagerkapazität
A45: Name Lager | B45: Anzahl | C45: Behälter- | D45: Art d. | E45: Pumpensumpf | F45: Oberfläche | G45: Grundfläche | H45: Behälterh. | I45: Abfüll- | J45: sonst.einm. | K45: Lagerraum | L45: Volumen | M45: Volumen | N45: Behälterh. | O45: Trapez-
B46: Behält. | C46: form | D46: Abdeckung | E46: Restfüllstand | F46: o. Durchmesser | G46: in m² | H46: in m | I46: fläche m² | J46: Flächen m² | K46: netto* in m³ | L46: gesamt | M46: verfügbar | N46: verfügbar | O46: behölter | P46: Regenwasser | R46: wasserdicht | S46: 1 | T46: 0.1 | U46: Summe Abdeck | V46: Regenwasser
C47: 1 | D47: 2 | E47: 5 | K47: =B47*IF(C47=1,(F47/2)*(F47/2)*PI()*N47-P47,IF(C47=2,F47*N47-P47,IF(C47=3,O47-P47,IF(C47=4,F47*N47,IF(E47=1,F47*(H47-0.1),F47*(H47-0.25)))))) -> 0 | L47: =B47*IF(C47=1,IF(E47=1,(F47/2)*(F47/2)*PI()*(H47),(F47/2)*(F47/2)*PI()*(H47)),IF(C47=2,IF(E47=1,F47*(H47),F47*(H47)),IF(C47=3,(F47+SQRT(F47*G47)+G47)*H47/3,IF(C47=4,F47*H47,IF(E47=1,F47*(H47),F47*(H47)))))) -> 0 | M47: =B47*IF(C47=1,(F47/2)*(F47/2)*PI()*(N47),IF(C47=2,F47*N47,IF(C47=3,O47,IF(C47=4,F47*N47,F47*N47)))) -> 0 | N47: =IF(H47=0,0,IF(C47=5,H47-0.1-VLOOKUP(E47,S$51:T$55,2),H47-VLOOKUP(D47,S$46:T$49,2)-VLOOKUP(E47,S$51:T$55,2))) -> 0 | O47: =IF(C47=3,(F47+G47+SQRT(F47*G47))*H47/3-IF(E47=1,F47*0.2,F47*0.2+G47*0.15),0) -> 0 | P47: =IF(D47=2,IF(C47=1,(F47/2)*(F47/2)*PI()*$D$37/1000*0.7*($A$41+5)*30/360,F47*$D$37/1000*0.7*($A$41+5)*30/360),0) -> 0 | R47: wasserdurchl. | S47: 2 | T47: 0.2 | U47: =IF(B47=0,0,IF(C47=1,B47*(F47/2)*(F47/2)*PI()*IF(D47=2,0.15,IF(D47=3,0.075,IF(D47=4,0.1,0))),IF(OR(C47=2,C47=3),B47*F47*IF(D47=2,0.15,IF(D47=3,0.075,IF(D47=4,0.1,0))),0))) -> 0 | V47: =IF(D47=2,IF(C47=1,B47*(F47/2)*(F47/2)*PI()*$D$37/1000*0.7*($A$41+5)*30/360,B47*F47*$D$37/1000*0.7*($A$41+5)*30/360),0) -> 0
C48: 1 | D48: 2 | E48: 5 | K48: 0 | L48: =B48*IF(C48=1,IF(E48=1,(F48/2)*(F48/2)*PI()*(H48),(F48/2)*(F48/2)*PI()*(H48)),IF(C48=2,IF(E48=1,F48*(H48),F48*(H48)),IF(C48=3,(F48+SQRT(F48*G48)+G48)*H48/3,IF(C48=4,F48*H48,IF(E48=1,F48*(H48),F48*(H48)))))) -> 0 | M48: 0 | N48: 0 | O48: 0 | P48: 0 | Q48: Staukanal | R48: gasdicht 35 cm | S48: 3 | T48: 0.35 | U48: 0 | V48: =IF(D48=2,IF(C48=1,B48*(F48/2)*(F48/2)*PI()*$D$37/1000*0.7*($A$41+5)*30/360,B48*F48*$D$37/1000*0.7*($A$41+5)*30/360),0) -> 0
C49: 1 | D49: 2 | E49: 5 | K49: 0 | L49: =B49*IF(C49=1,IF(E49=1,(F49/2)*(F49/2)*PI()*(H49),(F49/2)*(F49/2)*PI()*(H49)),IF(C49=2,IF(E49=1,F49*(H49),F49*(H49)),IF(C49=3,(F49+SQRT(F49*G49)+G49)*H49/3,IF(C49=4,F49*H49,IF(E49=1,F49*(H49),F49*(H49)))))) -> 0 | M49: 0 | N49: 0 | O49: 0 | P49: 0 | Q49: =SUMIF(C47:C56,4,K47:K56) -> 0 | R49: gasdicht 50 cm | S49: 4 | T49: 0.5 | U49: 0 | V49: 0
C50: 1 | D50: 2 | E50: 5 | K50: 0 | L50: 0 | M50: 0 | N50: 0 | O50: 0 | P50: 0 | Q50: Staukanal brutto | U50: 0 | V50: 0
C51: 1 | D51: 2 | E51: 5 | K51: 0 | L51: 0 | M51: 0 | N51: 0 | O51: 0 | P51: 0 | Q51: =SUMIF(C47:C56,4,L47:L56) -> 0 | R51: Pumpensumpf | S51: 1 | T51: 0 | U51: 0 | V51: 0
C52: 1 | D52: 2 | E52: 5 | K52: 0 | L52: 0 | M52: 0 | N52: 0 | O52: 0 | P52: 0 | Q52: Summe Anfall | R52: 15 cm Restfüllst. | S52: 2 | T52: 0.15 | U52: 0 | V52: 0
C53: 1 | D53: 2 | E53: 5 | K53: 0 | L53: 0 | M53: 0 | N53: 0 | O53: 0 | P53: 0 | Q53: =(SUM(D38:D41)-IF(D38>0,(Lager_Ri!$G$10),0)-IF(D41>0,(Lager_Schaf!$F$8)+(Lager_Schaf!$F$20),0))/(($A$41+5)*30) -> 0 | R53: 25 cm Restfüllst. | S53: 3 | T53: 0.25 | U53: 0 | V53: 0
C54: 1 | D54: 2 | E54: 5 | K54: 0 | L54: 0 | M54: 0 | N54: 0 | O54: 0 | P54: 0 | R54: 50 cm Restfüllst. | S54: 4 | T54: 0.5 | U54: 0 | V54: 0
C55: 1 | D55: 2 | E55: 5 | K55: 0 | L55: 0 | M55: 0 | N55: 0 | O55: 0 | P55: 0 | R55: 1 m Restfüllst. | S55: 5 | T55: 1 | U55: 0 | V55: 0
C56: 1 | D56: 2 | E56: 5 | K56: 0 | L56: 0 | M56: 0 | N56: 0 | O56: 0 | P56: 0 | U56: 0 | V56: 0
A57: Summe Behälter aus Anlage | B57: =B93 -> 0 | I57: =I93 -> 0 | J57: =J93 -> 0 | K57: =K93 -> 0 | L57: =L93 -> 0 | M57: =M93 -> 0 | P57: =P93 -> 0 | U57: =Q93 -> 0 | V57: =R93 -> 0
A58: Summe | B58: =SUM(B47:B57) -> 0 | I58: =(SUM(I47:I56)+I62)*($F$4/1000*($A$41+5)*30/360*0.7)+I57 -> 0 | J58: =(SUM(J47:J56)+J62)*($F$4/1000*($A$41+5)*30/360*0.7)+J57 -> 0 | K58: =SUM(K47:K57) -> 0 | L58: =SUM(L47:L57) -> 0 | M58: =SUM(M47:M57) -> 0 | P58: =SUM(P47:P57) -> 0 | U58: =SUM(U47:U57) -> 0 | V58: =SUM(V47:V57) -> 0
A59: =IF(K58>J41+J42+I58+J58,"freie Lagerkapazität für Flüssigmist in m³","neu zu errichtende Lagerkapazität für Flüssigmist in m³") -> neu zu errichtende Lagerkapazität für Flüssigmist in m³ | G59: =IF(K58>(J41+J42+I58+J58),K58-J41-I58-J58-J42,J41+J42+J58+I58-K58) -> 0 | R59: Rundbeh.
B60: Anzahl | C60: Behälter- | D60: Art d. | E60: Pumensumpf | F60: Oberfläche | G60: Grundfläche | H60: Behälterh. | I60: Abfüll- | J60: sonst.einm. | K60: Kapazität | L60: Volumen | M60: Volumen | N60: nutzb. | R60: Rechteckbeh.
B61: Behält. | C61: form | D61: Abdeckung | E61: Restfüllstand | F61: o. Durchm. | G61: in m² | H61: in m | I61: fläche m² | J61: Flächen m² | K61: netto in m³ | L61: gesamt | M61: nutzbar | N61: Behälterh. | R61: Re.-Trapez. | T61: OF-wasser
A62: Vorschlag neuer Behälter | B62: =B63 -> 0 | C62: 1 | D62: 2 | E62: 5 | F62: =IF(OR(B63=0,H63=0),0,IF(K58+I58+J58<J41+J42,IF(C62=1,SQRT(G59/B62/N62/PI())*2,IF(C62=2,G59/B62/N62,IF(E62=2,IF(D62=1,(SQRT(G59/B62/N62)+H62)*(SQRT(G59/B62/N62)+H62),(SQRT(G59/B62/N62)+H62+F4/1000*0.35)*(SQRT(G59/B62/N62)+H62+F4/1000*0.35)),IF(D62=1,(SQRT(G59/B62/N62)+H62+0.15)*(SQRT(G59/B62/N62)+H62+0.15),(SQRT(G59/B62/N62)+H62+F4/1000*0.35+0.15)*(SQRT(G59/B62/N62)+H62+F4/1000*0.35+0.15))))),0)) -> 0 | G62: =IF(OR(B63=0,H63=0),0,IF(C62=3,IF(E62=2,IF(D62=1,(SQRT(G59/B62/N62)-H62)*(SQRT(G59/B62/N62)-H62),(SQRT(G59/B62/N62)-H62+F4/1000*0.35)*(SQRT(G59/B62/N62)-H62+F4/1000*0.35)),IF(D62=1,(SQRT(G59/B62/N62)-H62+0.15)*(SQRT(G59/B62/N62)-H62+0.15),(SQRT(G59/B62/N62)-H62+F4/1000*0.35+0.15)*(SQRT(G59/B62/N62)-H62+F4/1000*0.35+0.15))),"")) -> 0 | H62: =H63 -> 0 | I62: =I63 -> 0 | J62: =J63 -> 0 | K62: =B62*IF(C62=1,(F62/2)*(F62/2)*PI()*N62,IF(C62=2,F62*N62,IF(C62=3,O62-P62,IF(C62=4,F62*H62*N62,IF(E62=1,F62*(H62-0.1),F62*(H62-0.25)))))) -> 0 | L62: =B62*IF(C62=1,IF(E62=1,(F62/2)*(F62/2)*PI()*(H62),(F62/2)*(F62/2)*PI()*(H62)),IF(C62=2,IF(E62=1,F62*(H62),F62*(H62)),IF(C62=3,(F62+SQRT(F62*G62)+G62)*H62/3,IF(C62=4,F62*H62,IF(E62=1,F62*(H62),F62*(H62)))))) -> 0 | M62: =B62*IF(C62=1,(F62/2)*(F62/2)*PI()*N62+P62,IF(C62=2,F62*N62+P62,IF(C62=3,O62,IF(C62=4,F62*H62*0.8,F62*N62)))) -> 0 | N62: =IF(H62=0,0,IF(D62=2,H62-0.2-VLOOKUP(E62,S$51:T$55,2)-$D$37/1000*($A$41+5)*30/360*0.7,H62-VLOOKUP(D62,S$46:T$49,2)-VLOOKUP(E62,S$51:T$55,2))) -> 0 | O62: =IF(C62=3,(F62+G62+SQRT(F62*G62))*H62/3-IF(E62=1,F62*0.2,F62*0.2+G62*0.15),0) -> 0 | P62: =IF(OR(D62=1,D62=3,D62=4,H62=""),0,IF(C62=1,(F62/2)*(F62/2)*PI()*$D$37/1000*0.7*($A$41+5)*30/360,IF(OR(C62=2,C62=3),F62*$D$37/1000*0.7*($A$41+5)*30/360,0))) -> 0 | R62: Staukanal | T62: =IF(B63=0,0,($F$4/1000*($A$41+5)*30/360*0.7)*(J62+I62)) -> 0 | V62: =IF(B62=0,0,IF(D62=2,IF(C62=1,B62*(F62/2)*(F62/2)*PI()*$D$37/1000*0.7*($A$41+5)*30/360,IF(OR(C62=2,C62=3),B62*F62*$D$37/1000*0.7*($A$41+5)*30/360,0)),0)) -> 0
A63: geplanter neuer Behälter | C63: 1 | D63: 2 | E63: 5 | K63: =B63*IF(C63=1,(F63/2)*(F63/2)*PI()*N63,IF(C63=2,F63*N63,IF(C63=3,O63-P63,IF(C63=4,F63*N63,IF(E63=1,F63*(H63-0.1),F63*(H63-0.25)))))) -> 0 | L63: =B63*IF(C63=1,IF(E63=1,(F63/2)*(F63/2)*PI()*(H63),(F63/2)*(F63/2)*PI()*(H63)),IF(C63=2,IF(E63=1,F63*(H63),F63*(H63)),IF(C63=3,(F63+SQRT(F63*G63)+G63)*H63/3,IF(C63=4,F63*H63,IF(E63=1,F63*(H63),F63*(H63)))))) -> 0 | M63: =B63*IF(C63=1,(F63/2)*(F63/2)*PI()*N63+P63,IF(C63=2,F63*N63+P63,IF(C63=3,O63,IF(C63=4,F63*H63*0.8,F63*N63)))) -> 0 | N63: =IF(H63=0,0,IF(D63=2,H63-0.2-VLOOKUP(E63,S$51:T$55,2)-$D$37/1000*($A$41+5)*30/360*0.7,H63-VLOOKUP(D63,S$46:T$49,2)-VLOOKUP(E63,S$51:T$55,2))) -> 0 | O63: =IF(C63=3,(F63+G63+SQRT(F63*G63))*H63/3-IF(E63=1,F63*0.2,F63*0.2+G63*0.15),0) -> 0 | P63: =IF(OR(D63=1,D63=3,D63=4,H63=""),0,IF(C63=1,(F63/2)*(F63/2)*PI()*$D$37/1000*0.7*($A$41+5)*30/360,IF(OR(C63=2,C63=3),F63*$D$37/1000*0.7*($A$41+5)*30/360,0))) -> 0 | R63: Güllekeller | V63: =IF(B63=0,0,IF(D63=2,IF(C63=1,B63*(F63/2)*(F63/2)*PI()*$D$37/1000*0.7*($A$41+5)*30/360,IF(OR(C63=2,C63=3),B63*F63*$D$37/1000*0.7*($A$41+5)*30/360,0)),0)) -> 0
A65: * Bei der Nettolagerkapazität sind in Abhängigkeit der Schalterstellungen Freibord und Restfüllstand sowie 70% des anteiligen Jahresniederschlages bereits berücksichtigt.
A67: Die Lagerkapazität für Flüssigmist entspricht einer Lagerdauer von: | H67: =IF(J41+J42>0,(M63+M58)/((J41+J42+I58+J58+V58+V63)/(($A$41+5)*30)),"") ->  | I67: Tagen= | J67: =IF(H67="","",H67/30) ->  | K67: Monaten | P67: =IF(J41>0,(M63+M58)/((J41+I58+J58+P58+B63*P63)/(($A$41+5)*30)),"") ->  | R67: überdacht | S67: Rind
A68: Kommentar: | R68: offen
R69: Stall | S69: Schwein
A70: Anlage: Berechnung Flüssigmistlagerkapazität für den Gesamtbetrieb | K70: =Deckblatt!H3 -> Version "2017-2.8"
A71: Betrieb: | B71: =B35 ->  | G71: Untern.-Nr.: | I71: =I35 -> 160000000000 | K71: =K2 ->  | S71: > Sperrfrist DüV (33 d)
A72: mitwirk. Unternehemen: | B72: =Deckblatt!E6 ->  | G72: Bearbeiter: | I72: =Deckblatt!E8 ->  | S72: 2 Monate
A73: vorhandene Lagerkapazität | E73: Jahresniederschlag 30-jähriges Mittel (mm) | F73: =F4 -> 1000 | G73: Variante: | I73: =I37 ->  | S73: 3 Monate
A74: Name Lager | B74: Anzahl | C74: Behälter- | D74: Art d. | E74: Restfüllstand | F74: Oberfläche | G74: Grundfläche | H74: Behälterh. | I74: Abfüll- | J74: einmünd. | K74: Lagerraum | L74: Volumen | M74: Volumen | N74: Behälterh. | O74: Trapez- | P74: Regenwasser | S74: 4 Monate
B75: Behält. | C75: form | D75: Abdeckung | E75: Pumpensumpf | F75: o. Durchm. | G75: in m² | H75: in m | I75: fläche m² | J75: Flächen m² | K75: netto* in m³ | L75: gesamt | M75: nutzbar | N75: nutzb. | O75: behölter | S75: 5 Monate
C76: 1 | D76: 2 | E76: 5 | K76: =B76*IF(C76=1,(F76/2)*(F76/2)*PI()*N76-P76,IF(C76=2,F76*N76-P76,IF(C76=3,O76-P76,IF(C76=4,F76*N76,IF(E76=1,F76*(H76-0.1),F76*(H76-0.25)))))) -> 0 | L76: =B76*IF(C76=1,IF(E76=1,(F76/2)*(F76/2)*PI()*(H76),(F76/2)*(F76/2)*PI()*(H76)),IF(C76=2,IF(E76=1,F76*(H76),F76*(H76)),IF(C76=3,(F76+SQRT(F76*G76)+G76)*H76/3,IF(C76=4,F76*H76,IF(E76=1,F76*(H76),F76*(H76)))))) -> 0 | M76: =B76*IF(C76=1,(F76/2)*(F76/2)*PI()*(N76),IF(C76=2,F76*N76,IF(C76=3,O76,IF(C76=4,F76*N76,F76*N76)))) -> 0 | N76: =IF(H76=0,0,IF(C76=5,H76-0.1-VLOOKUP(E76,S$51:T$55,2),H76-VLOOKUP(D76,S$46:T$49,2)-VLOOKUP(E76,S$51:T$55,2))) -> 0 | O76: =IF(C76=3,(F76+G76+SQRT(F76*G76))*H76/3-IF(E76=1,F76*0.2,F76*0.2+G76*0.15),0) -> 0 | P76: =IF(OR(D76=1,D76=3,D76=4,H76=""),0,IF(C76=1,(F76/2)*(F76/2)*PI()*$D$37/1000*0.7*($A$41+5)*30/360,IF(OR(C76=2,C76=3),F76*$D$37/1000*0.7*($A$41+5)*30/360,0))) -> 0 | R76: =IF(B76=0,0,IF(D76=2,IF(C76=1,B76*(F76/2)*(F76/2)*PI()*$D$37/1000*0.7*($A$41+5)*30/360,IF(OR(C76=2,C76=3),B76*F76*$D$37/1000*0.7*($A$41+5)*30/360,0)),0)) -> 0 | S76: 6 Monate
C77: 1 | D77: 2 | E77: 5 | K77: 0 | L77: =B77*IF(C77=1,IF(E77=1,(F77/2)*(F77/2)*PI()*(H77),(F77/2)*(F77/2)*PI()*(H77)),IF(C77=2,IF(E77=1,F77*(H77),F77*(H77)),IF(C77=3,(F77+SQRT(F77*G77)+G77)*H77/3,IF(C77=4,F77*H77,IF(E77=1,F77*(H77),F77*(H77)))))) -> 0 | M77: 0 | N77: 0 | O77: 0 | P77: 0 | R77: =IF(B77=0,0,IF(D77=2,IF(C77=1,B77*(F77/2)*(F77/2)*PI()*$D$37/1000*0.7*($A$41+5)*30/360,IF(OR(C77=2,C77=3),B77*F77*$D$37/1000*0.7*($A$41+5)*30/360,0)),0)) -> 0 | S77: 7 Monate
C78: 1 | D78: 2 | E78: 5 | K78: 0 | L78: 0 | M78: 0 | N78: 0 | O78: 0 | P78: 0 | R78: 0 | S78: 8 Monate
C79: 1 | D79: 2 | E79: 5 | K79: 0 | L79: 0 | M79: 0 | N79: 0 | O79: 0 | P79: 0 | R79: 0 | S79: 9 Monate
C80: 1 | D80: 2 | E80: 5 | K80: 0 | L80: 0 | M80: 0 | N80: 0 | O80: 0 | P80: 0 | R80: 0 | S80: 10 Monate
C81: 1 | D81: 2 | E81: 5 | K81: 0 | L81: 0 | M81: 0 | N81: 0 | O81: 0 | P81: 0 | R81: 0 | S81: 11 Monate
C82: 1 | D82: 2 | E82: 5 | K82: 0 | L82: 0 | M82: 0 | N82: 0 | O82: 0 | P82: 0 | R82: 0 | S82: 12 Monate
C83: 1 | D83: 2 | E83: 5 | K83: 0 | L83: 0 | M83: 0 | N83: 0 | O83: 0 | P83: 0 | R83: 0
C84: 1 | D84: 2 | E84: 5 | K84: 0 | L84: 0 | M84: 0 | N84: 0 | O84: 0 | P84: 0 | R84: 0
C85: 1 | D85: 2 | E85: 5 | K85: 0 | L85: 0 | M85: 0 | N85: 0 | O85: 0 | P85: 0 | R85: 0
C86: 1 | D86: 2 | E86: 5 | K86: 0 | L86: 0 | M86: 0 | N86: 0 | O86: 0 | P86: 0 | R86: 0
C87: 1 | D87: 2 | E87: 5 | K87: 0 | L87: 0 | M87: 0 | N87: 0 | O87: 0 | P87: 0 | R87: 0
C88: 1 | D88: 2 | E88: 5 | K88: 0 | L88: 0 | M88: 0 | N88: 0 | O88: 0 | P88: 0 | R88: 0
C89: 1 | D89: 2 | E89: 5 | K89: 0 | L89: 0 | M89: 0 | N89: 0 | O89: 0 | P89: 0 | R89: 0
C90: 1 | D90: 2 | E90: 5 | K90: 0 | L90: 0 | M90: 0 | N90: 0 | O90: 0 | P90: 0 | R90: 0
C91: 1 | D91: 2 | E91: 5 | K91: 0 | L91: 0 | M91: 0 | N91: 0 | O91: 0 | P91: 0 | R91: 0
C92: 1 | D92: 2 | E92: 5 | K92: 0 | L92: 0 | M92: 0 | N92: 0 | O92: 0 | P92: 0 | R92: 0
A93: Summe | B93: =SUM(B76:B92) -> 0 | I93: =(SUM(I76:I92))*($F$4/1000*($A$41+5)*30/360*0.7) -> 0 | J93: =(SUM(J76:J92))*($F$4/1000*($A$41+5)*30/360*0.7) -> 0 | K93: =SUM(K76:K92) -> 0 | L93: =SUM(L76:L92) -> 0 | M93: =SUM(M76:M92) -> 0 | P93: =SUM(P76:P92) -> 0 | R93: =SUM(R76:R92) -> 0
K112: 3

Sheet Lager_Gefl.
A1: Flüssig- und Festmistanfall für Geflügel u. Kaninchen | H1: =Deckblatt!H3 -> Version "2017-2.8" | I1: =Deckblatt!O31 -> 
A2: Betrieb: | C2: =Deckblatt!E15 ->  | G2: Untern.-Nr.: | H2: =Deckblatt!E25 -> 160000000000
A3: mitwirk. Unternehmen: | C3: =Deckblatt!E6 ->  | G3: Bearbeiter: | H3: =Deckblatt!E8 -> 
C4: Tier- | D4: Tierplätze | E4: Tierplätze | F4: Tierplätze | G4: Anfall | H4: Anfall | I4: Anfall
C5: plätze | D5: Gülle | E5: Trockenkot | F5: Tiefstreu | G5: Gülle/Jauche | H5: Trockenkot | I5: Festmist
G6: 1 | H6: 2 | I6: 1
A7: Legehennen | H7: =E7*O16/1000*(H6+4) -> 0 | I7: =F7*P16/1000*(I6+4) -> 0
A8: über 6 Monate | C8: =IF(D7+E7+F7=C7,"",D7+E7+F7-C7) -> 
A9: Küken und Junghennen | H9: =E9*O17/1000*(H6+4) -> 0 | I9: =F9*P17/1000*(I6+4) -> 0
A10: zur Aufzucht | C10: =IF(D9+E9+F9=C9,"",D9+E9+F9-C9) -> 
A11: Masthähnchen (Broiler) | I11: =F11*P18/1000*(I6+4) -> 0
A12: Mast über 39 Tage | C12: =IF(D11+E11+F11=C11,"",D11+E11+F11-C11) ->  | N12: Lagerbedarf | O12: Lagerbedarf | P12: Lagerbedarf
A13: Masthähnchen (Broiler) | I13: =F13*P19/1000*(I6+4) -> 0 | L13: Frischmist | M13: Frischmist | N13: Gülle | O13: Trockenkot | P13: Tiefstreu | Q13: Jauche b. Tr-kot
A14: Mast über 34 Tage | C14: =IF(D13+E13+F13=C13,"",D13+E13+F13-C13) -> 
A15: Masthähnchen (Broiler) | I15: =F15*P20/1000*(I6+4) -> 0 | L15: t/Tier | M15: m³/Tier | N15: 1000 Tiere
A16: Mast 30 bis 33 Tage | C16: =IF(D15+E15+F15=C15,"",D15+E15+F15-C15) ->  | J16: Legehennen über 6 Monate | K16: 0.003225806 | L16: 1.833 | M16: 2.3 | O16: 2.2 | P16: 2.5
A17: Masthähnchen (Broiler) | I17: =F17*P21/1000*(I6+4) -> 0 | J17: Küken und Junghennen zur Aufzucht als Legehennen | K17: 0.001351351 | L17: 0.583 | M17: 0.7 | O17: 0.8 | P17: 0.9
A18: Mast bis 29 Tage | C18: =IF(D17+E17+F17=C17,"",D17+E17+F17-C17) ->  | J18: Masthähnchen (Broiler), Mast über 39 d | L18: 0.984 | M18: 1.2 | P18: 1.2
A19: Enten zur Zucht | I19: =F19*P22/1000*(I6+4) -> 0 | J19: Masthähnchen (Broiler), Mast über 34 d | K19: 0.001449275 | L19: 0.925 | M19: 1.2 | P19: 1.2
C20: =IF(D19+E19+F19=C19,"",D19+E19+F19-C19) ->  | J20: Masthähnchen (Broiler), Mast 30-33 d | L20: 0.833 | M20: 1 | P20: 1
A21: Mastenten | B21: Tage Stall | G21: =IF(B22>0,D21*N23/1000/30*B22,D21*N23/1000*(G6+5)) -> 0 | I21: =IF(B22>0,F21*P23/1000/30*B22,F21*P23/1000*(I6+4)) -> 0 | J21: Masthähnchen (Broiler), Mast bis 29 d | L21: 0.775 | M21: 1 | P21: 1
A22: Pekingenten | C22: =IF(D21+E21+F21=C21,"",D21+E21+F21-C21) ->  | J22: Enten (!zur Zucht!) | K22: 0.006896551 | L22: 8.5 | M22: 10.6 | P22: 10.6
A23: Mastenten | B23: Tage Stall | I23: =IF(B24>0,F23*P24/1000/30*B24,F23*P24/1000*(I6+4)) -> 0 | J23: Mastenten, Pekingenten | K23: 0.002857142 | L23: 4.8 | M23: 6 | N23: 6 | P23: 6
A24: Flugenten | C24: =IF(D23+E23+F23=C23,"",D23+E23+F23-C23) ->  | J24: Mastenten, Flugenten | L24: 3.83 | M24: 4.8 | P24: 4.8
A25: Gänse zur Zucht | I25: =F25*P25/1000*(I6+4) -> 0 | J25: Gänse (! zur Zucht !) | K25: 0.015384615 | L25: 9.5 | M25: 11.9 | P25: 11.9
C26: =IF(D25+E25+F25=C25,"",D25+E25+F25-C25) ->  | J26: Mastgänse, Kurzmast bis 5,0 kg | L26: 1.383 | M26: 1.7 | P26: 1.3
A27: Mastgänse | B27: Tage Stall | I27: =IF(B28>0,F27*P26/1000/30*B28,F27*P26/1000*(I6+4)) -> 0 | J27: Mastgänse Mittelmast bis 6,8 kg | K27: 0.006060606 | L27: 3.117 | M27: 3.9 | P27: 3
A28: Kurzmast bis 5,0 kg | C28: =IF(D27+E27+F27=C27,"",D27+E27+F27-C27) ->  | J28: Mastgänse Langmast bis 7,8 kg | L28: 5.133 | M28: 6.4 | P28: 4.8
A29: Mastgänse | B29: Tage Stall | I29: =IF(B30>0,F29*P27/1000/30*B30,F29*P27/1000*(I6+4)) -> 0 | J29: Mastputen, Hennen bis 17 Wochen | K29: 0.0133333333 | L29: 4.2 | M29: 8.4 | P29: 6.3
A30: Mittelmast bis 6,8 kg | C30: =IF(D29+E29+F29=C29,"",D29+E29+F29-C29) ->  | J30: Mastputen Hähne bis 21 Wochen | L30: 4.033 | M30: 8.1 | P30: 6
A31: Mastgänse | B31: Tage Stall | I31: =IF(B32>0,F31*P28/1000/30*B32,F31*P28/1000*(I6+4)) -> 0 | J31: Mastputen, Hennen ab 6. Woche | L31: 5 | M31: 10 | P31: 7.5
A32: Langmast bis 7,8 kg | C32: =IF(D31+E31+F31=C31,"",D31+E31+F31-C31) ->  | J32: Mastputen Hähne ab 6. Woche | L32: 5.084 | M32: 10.2 | P32: 7.6
A33: Mastputen | B33: Tage Stall | I33: =IF(B34>0,F33*P29/1000/30*B34,F33*P29/1000*(I6+4)) -> 0 | J33: Mastputen, gemischtgeschl. Mast, incl. Aufzucht | L33: 4.12 | M33: 8.2 | P33: 6.2
A34: Hennen bis 17 Wochen | C34: =IF(D33+E33+F33=C33,"",D33+E33+F33-C33) ->  | J34: Putenaufzucht bis 5 Wochen | L34: 1.1 | M34: 2.2 | P34: 2.2
A35: Mastputen | B35: Tage Stall | I35: =IF(B36>0,F35*P30/1000/30*B36,F35*P30/1000*(I6+4)) -> 0 | J35: Kaninchen (! Zucht- und Mast geschl. System, je Häsin!) | K35: 0.025 | L35: 101.3 | M35: 109.6 | N35: 74.6 | O35: 33.9 | P35: 82.2 | Q35: 47.5
A36: Hähne bis 21 Wochen | C36: =IF(D35+E35+F35=C35,"",D35+E35+F35-C35) ->  | J36: Mastkaninchen | K36: 0.0021 | L36: 9.38 | M36: 10.4 | N36: 6.88 | O36: 3.1 | P36: 9 | Q36: 4.4
A37: Mastputen | B37: Tage Stall | I37: =IF(B38>0,F37*P31/1000/30*B38,F37*P31/1000*(I6+4)) -> 0 | J37: Zuchtkaninchen mit Absetzer | K37: 0.0133 | L37: 23.25 | M37: 25.8 | N37: 17 | O37: 7.7 | P37: 21 | Q37: 10.8
A38: Hennen ab 6. Woche | C38: =IF(D37+E37+F37=C37,"",D37+E37+F37-C37) ->  | O38: 800kg/m³
A39: Mastputen | B39: Tage Stall | I39: =IF(B40>0,F39*P32/1000/30*B40,F39*P32/1000*(I6+4)) -> 0
A40: Hähne ab 6. Woche | C40: =IF(D39+E39+F39=C39,"",D39+E39+F39-C39) ->  | N40: 33 Tage
A41: Mastputen | B41: Tage Stall | I41: =IF(B42>0,F41*P33/1000/30*B42,F41*P33/1000*(I6+4)) -> 0 | N41: 2 Monate
A42: gem.-geschl. Aufzucht u. Mast | C42: =IF(D41+E41+F41=C41,"",D41+E41+F41-C41) ->  | N42: 3 Monate
A43: Putenaufzucht bis 5 Wochen | I43: =F43*P34/1000*(I6+4) -> 0 | N43: 4 Monate
C44: =IF(D43+E43+F43=C43,"",D43+E43+F43-C43) ->  | N44: 5 Monate
A45: Zuchtkaninchen | G45: =D45*N37/1000*(G6+5) -> 0 | H45: =E45*O35/1000*(H6+4) -> 0 | I45: =F45*P35/1000*(I6+4) -> 0 | N45: 6 Monate
A46: mit Absetzern | C46: =IF(D45+E45+F45=C45,"",D45+E45+F45-C45) ->  | G46: =E45*Q37/1000*(G6+5) -> 0 | N46: 7 Monate
A47: Mastkaninchen | G47: =D47*N36/1000*(G6+5) -> 0 | H47: =E47*O36/1000*(H6+4) -> 0 | I47: =F47*P36/1000*(I6+3) -> 0 | N47: 8 Monate
C48: =IF(D47+E47+F47=C47,"",D47+E47+F47-C47) ->  | G48: =E47*Q36/1000*(G6+5) -> 0 | N48: 9 Monate
A49: Kaninchen, einschl. Nachzucht | G49: =D49*N35/1000*(G6+5) -> 0 | H49: =E49*O37/1000*(H6+4) -> 0 | I49: =F49*P37/1000*(I6+3) -> 0 | N49: 10 Monate
A50: geschlossenes System | C50: =IF(D49+E49+F49=C49,"",D49+E49+F49-C49) ->  | G50: =E49*Q35/1000*(G6+5) -> 0 | N50: 11 Monate
A51: Summe | C51: =C7+C9+C11+C13+C15+C17+C19+C21+C23+C25+C27+C29+C31+C33+C35+C37+C39+C41+C43+C45+C47+C49 -> 0 | G51: =SUM(G7:G50) -> 0 | H51: =H49+H47+H45+H7+H9 -> 0 | I51: =SUM(I7:I49) -> 0 | N51: 12 Monate
A52: Kommentar:

Sheet Lager_Schaf
A1: Flüssig- und Festmistanfall für Schafe und Pferde | F1: =Deckblatt!H3 -> Version "2017-2.8" | G1: =Deckblatt!O31 -> 
A2: Betrieb: | B2: =Deckblatt!E15 ->  | E2: Untern.-Nr.: | F2: =Deckblatt!E25 -> 160000000000
A3: mitwirk. Unternehmen: | B3: =Deckblatt!E6 ->  | E3: Bearbeiter: | F3: =Deckblatt!E8 -> 
C4: Flachstreu | D4: Tiefstreu | E4: Anfall in m³ | F4: Anfall in m³ | K4: Frischmist | M4: Tiefstreu
B5: Tierplätze | C5: (Frischmist) | E5: Festmist | F5: Reinig.-wasser | J5: GV | K5: t/Tier | L5: m³/Tier | M5: m³/Tier
B6: gesamt | C6: Tierplätze | D6: Tierplätze | E6: =Betrieb!A6 -> 1 | F6: 1 | I6: Schafe unter 1 Jahr und Hammel | J6: 0.1 | K6: 0.074 | L6: 0.114 | M6: 0.08
A7: Mutterschafe | E7: =(C7*L7*VLOOKUP(E6,K26:L31,2)+IF(E6<3,D7*L7,D7*M7))*IF(E$6=1,E$6*1.1,E$6) -> 0 | I7: Mutterschafe | J7: 0.15 | K7: 0.092 | L7: 0.142 | M7: 0.1
A8: Melkhausabwasser in Jauche einleiten ? | E8: 1 | F8: =IF(E8=1,N12*(F6+5)*(C7+D7),0) -> 0
A9: weibl. Schafe > 1Jahr | E9: =(C9*L10*VLOOKUP(E6,K26:L31,2)+IF(E6<3,D9*L10,D9*M10))*IF(E$6=1,E$6*1.1,E$6) -> 0 | I9: Mastlämmer | J9: 0.06 | K9: 0.046 | L9: 0.071 | M9: 0.05
A10: (Zutreter) | I10: Weibliche Schafe über 1 Jahr (Zutreter) | J10: 0.15 | K10: 0.083 | L10: 0.128 | M10: 0.09
A11: Schafe < 1 Jahr | E11: =(C11*L6*VLOOKUP(E6,K26:L31,2)+IF(E6<3,D11*L6,D11*M6))*IF(E$6=1,E$6*1.1,E$6) -> 0 | I11: Andere Schafe über 1 Jahr (Böcke) | J11: 0.2 | K11: 0.11 | L11: 0.169 | M11: 0.12
A12: und Hammel | I12: Mutterziegen | J12: 0.15 | K12: 0.083 | L12: 0.128 | M12: 0.09 | N12: 0.045
A13: and. Schafe >1 Jahr | E13: =(C13*L11*VLOOKUP(E6,K26:L31,2)+IF(E6<3,D13*L11,D13*M11))*IF(E$6=1,E$6*1.1,E$6) -> 0 | I13: andere Ziegen (unter 1 Jahr) | J13: 0.15 | K13: 0.055 | L13: 0.085 | M13: 0.06
A14: (Böcke)
A15: Mastlämmer | E15: =(C15*L9*VLOOKUP(E6,K26:L31,2)+IF(E6<3,D15*L9,D15*M9))*IF(E$6=1,E$6*1.1,E$6) -> 0 | I15: Pferde unter 6 Monate, Ponys, Kleinpferde | J15: 0.5 | K15: 0.283 | L15: 0.47 | M15: 0.35
I16: Pferde 6 Monate- 3Jahre | J16: 0.75 | K16: 0.566 | L16: 0.94 | M16: 0.7
A17: Summe Schafe | E17: =E7+E9+E11+E13+E15 -> 0
A19: Mutterziegen | E19: =(C19*L12*VLOOKUP(E6,K26:L31,2)+IF(E6<3,D19*L12,D19*M12))*IF(E$6=1,E$6*1.1,E$6) -> 0 | I19: Pferde über 3 Jahre | J19: 1.1 | K19: 0.933 | L19: 1.6 | M19: 1.1
A20: Melkhausabwasser in Jauche einleiten ? | E20: 1 | F20: =IF(E20=1,N12*(F6+5)*(C19+D19),0) -> 0 | J20: ja
A21: andere Ziegen | E21: =(C21*L13*VLOOKUP(E6,K26:L31,2)+IF(E6<3,D21*L13,D21*M13))*IF(E$6=1,E$6*1.1,E$6) -> 0 | J21: nein
A22: (unter 1 Jahr)
A23: Summe Ziegen | E23: =E19+E21 -> 0
A25: Pferde | E25: =(C25*L19*VLOOKUP(E6,K26:L31,2)+IF(E6<3,D25*L19,D25*M19))*IF(E$6=1,E$6*1.1,E$6) -> 0
A26: über 3 Jahre | J26: 33 Tage | K26: 1 | L26: 1
A27: Pferde 6 Mo.-3 Jahre | E27: =(C27*L16*VLOOKUP(E6,K26:L31,2)+IF(E6<3,D27*L16,D27*M16))*IF(E$6=1,E$6*1.1,E$6) -> 0 | J27: 2 Monate | K27: 2 | L27: 1
A28: Kleinpferde | J28: 3 Monate | K28: 3 | L28: 0.866
A29: Pferde unter 6 Mon. | E29: =(C29*L15*VLOOKUP(E6,K26:L31,2)+IF(E6<3,D29*L15,D29*M15))*IF(E$6=1,E$6*1.1,E$6) -> 0 | J29: 4 Monate | K29: 4 | L29: 0.8
A30: Ponys, Esel | J30: 5 Monate | K30: 5 | L30: 0.76
A31: Summe Pferde | E31: =E29+E27+E25 -> 0 | J31: 6 Monate | K31: 6 | L31: 0.73
A32: Summe | B32: =B29+B27+B25+B21+B19+B15+B13+B11+B9+B7 -> 0 | E32: =E31+E23+E17 -> 0 | F32: =SUM(F7:F30) -> 0 | J32: 7 Monate
A33: Kommentar: | J33: 8 Monate
J34: 9 Monate
J35: 10 Monate
J36: 11 Monate
J37: 12 Monate

Sheet Hilfe
A1: Hinweise und Erläuterungen zur Programmbenutzung
A2: Erklärung:
A3: Das EXCEL-Programm zur Ermittlung der Lagerkapazität von Dung wurde mit großer Sorgfalt erstellt. Trotzdem können Fehler bei der Programmierung nicht ausgeschlossen werden. Das Landesamt für Umwelt, Landwirtschaft und Geologie (LfULG) bzw. die Thüringer Landesanstalt für Landwirtschaft (TLL) übernehmen keinerlei Haftung für Schäden und Nachteile, die aus Programmfehlern, fehlerhaft hinterlegten Daten, fehlerhafter Programmanwendung oder Programmdokumentation einschließlich unzureichender, fehlerhafter oder missverständlicher Anwendungshinweise, fehlender Programmaktualisierung etc. resultieren. Weiterhin weisen wir darauf hin, dass das Programm nur als Hilfsmittel zur Vereinfachung der Verwaltungsverfahren, nicht aber als offizielles Dokument oder Instrument zur Verfügung gestellt wird. Wir garantieren nicht, dass immer die aktuellste Version des Programms zur Verfügung gestellt wird.
A4: Sächsisches Landesamt für Umwelt, Landwirtschaft und Geologie (LfULG) 2008 / 2017 / 2018
A6: Zweck | C6: Das Programm "Lagerka" dient zur Ermittlung und zum Nachweis der Lagerkapazit für Wirtschaftsdünger bei der Förderung landwirtschaftlicher Unternehmen, bei Genehmigungsverfahren sowie Kontrollen im Rahmen von Cross-Complience
A8: Exceleinstellungen
A9: Makrosicherheit: | C9: ab Excel 2007: Datei/Optionen/Sicherheitscenter/Einstellungen für das Sicherheitscenter/Einstellungen für Makros --> "Alle Makros mit Benachrichtigung deaktivieren"
A11: Aufbau | C11: Das Programm ist im Seitenmodus aufgebaut. Sind mehrere Tabellen auf einem Arbeitsblatt, entspricht jede Tabelle einer Seite
A13: Tabellen
A14: Deckblatt: | C14: Angaben zum Betrieb und zum Bearbeiter
A15: Lager_Ri: | C15: Dunganfall für Rinder, Silosickersaftanfall
A16: Lager_Schwein: | C16: Dunganfall für Schweine
A17: Lager_Schaf: | C17: Dunganfall für Schafe, Ziegen und Pferde
A18: Lager_Gefl.: | C18: Dunganfall für Geflügel und Kaninchen
A19: Coferm: | C19: Anfallsberechnung von Biogasfugat aus Kofermenten, Berechnung von Phasenanteilen bei der Gärrest- bzw. Gülleseparation
A20: Betrieb: | C20: Zusammenfassung der Wirtschaftsdüngeranfallswerte aus den Lager_*-Tabellen und der Tabelle Cofermente, Berechnung der Lagerkapazität und der Lagerdauer, Berücksichtigung von Freibord, Niederschlägen und ggf. Restfüllstand
A21: Ergebnis: | C21: Nachweis der vorhandenen Lagerkapazität für Behörden, z.B. im Rahmen von CC-Kontrollen
A22: JNS-TH: | C22: Hilfstabelle zur Ermittlung des Jahresniederschlages für die Gemeinden in Thüringen. Die Niederschläge sind das 30-jährige Mittel von 1981-2010. Weitere/aktuellere Jahresniederschläge für ausgewählte Wetterstationen in Deutschland können beim DWD abgerufen werden.
A23: WD-Anfall: | C23: Die Tabelle enthält die monatlichen Anfallsmengen
A24: TIPLA_Mi, TIPLA_S: | C24: Die Tabellen Tierplatzplanung Milch (TIPLA_Mi) und Tierplatzplanung Schwein (TIPLA_S) dienen auschließlich Planungszwecken
A25: Mako-Tabellen: | C25: Hilfstabellen zur Makrosteuerung
A27: Bedienungshinweise
A28: Deckblatt: | C28: Im Deckblatt müssen mindestens die Zeilen: Betrieb, Datum, Jahresniederschlag, Bearbeiter und Unternehmensnummer ausgefüllt werden. Diese Daten werden automatisch in die weiteren Tabellen übernommen.
A30: Kommentare: | C30: Zur Hilfestellung und Erläuterung befinden sich an einigen Zellen rechts oben rote Ecken. Beim Überstreichen der Zelle mit dem Cursors werden die Kommentare sichtbar.
A32: Pull-Down-Schalter: | C32: Die Schalter gestatten eine Optionsauswahl. Achten Sie insbesondere bei den Schaltern zur Lagerdauer auf richtige Einstellungen.
A34: Übernahme-Schalter: | C34: Diese Schalter übernehmen Zahlenwerte aus anderen Tabellen
A36: Sprungschalter: | C36: Mit den Sprungschaltern ist der Sprung in ein anderes Tabellenblatt möglich. Sie ergänzen das Karteisystem unterhalb des Excel-Arbeitsblattes
A38: Löschschalter: | C38: Die Schalter ermöglichen die Löschung der Eingaben innerhalb einer Tabelle. Achtung!!!: Löschungen per Makro sind nicht rückgängig zu machen!
A40: Bedeutung der Zellfarben: | C40: Hellblaue Zellen sind Eingabezellen, nur in diese Zellen kann geschrieben werden.
C41: Gelbe Zellen sind (Zwischen-)Ergebniszellen - gesperrt
C42: Hellbraune Zellen sind Ergebnisszellen - gesperrt
C43: Alle anderen Farben dienen optischen Abgrenzungen - gesperrt
A45: weitere Hinweise | C45: In der Tabelle "Betrieb" besteht die Möglichkeit die Anfallsmengen von Dung, Silosickersaft und Fugat aus Kofermenten mittels Schalter zu übernehmen. Gleichzeitig können die Anfallsmengen aber auch direkt eingetragen werden. Bitte berücksichtigen Sie dabei den eingestellten Lagerzeitraum (Schalterstellung)! Dies gilt auch für entsprechende Eingaben zum Minder- bzw. Mehranfall.
C47: Nach Düngeverordnung darf Festmist von Huf- und Klauentieren vom 15. Dezember bis einschließlich 15. Januar nicht ausgebracht werden. Daraus resultiert eine Mindestlagerdauer von 33 Tagen für Festmist von Huf-und Klauentieren.
C49: In der Tabelle "Betrieb - Festmistanfall" sind neue Schalter für die Zuordnung von einzelnen Tierarten auf bestimmte Lagerstätten - hier speziell die Lagerstätte "Stall" bei Tiefstreuverfahren - angeordnet worden. Dies soll ausschließen, dass Ställe mit einer Lagerkapazität über 33 Tagen - bzw. 2 Monaten ab 2020 rechnerisch zum Lager für Festmiste anderer Tiergruppen werden.
C51: Da die verkürzte Ausbringesperrfrist nur für Festmiste von Huf- und Klauentieren gilt, ergeben sich für andere Formen von Festmist auch andere Lagerkapazitäten: - für Geflügeltrockenkot und Geflügelmist mindestens 5 Monate - für Feststoffe von Gülle und Gärresten mindestens 6 Monate.
C53: In den Tabellen "Rind", "Geflügel" und "Schaf" kann für einige Tiergruppen die Stallhaltungsdauer in Tagen angegeben werden. Ist die Dauer kürzer als die Schalterstellung 6 ...12 Monate, wird der Flüssigmistanfall auf die angegebene Tageszahl reduziert. Nach Düngeverordnung 2017 betrifft dies den Zeitraum vom 01.Oktober bis 01.April. Diese Angaben sind entsprechend gesondert zu begründen. Da die Düngeverordnung 2017 für Festmist von Huf-und Klauentieren nur noch eine Lagerkapazität von mehr als 32 Tagen (2 Monate ab 2020) vorsieht, hat die Stallhaltungsdauer auf den Festmistanfall hier keinen Einfluss.
A55: Ansprechpartner: | C55: Informationen zur Programmnutzung erteilen die zuständigen Landwirtschaftsämter als Kontrollbehörde.
C57: Weitergehende Fragen zu Programm und Daten können über die Thüringer Landesanstalt für Landwirtschaft geklärt werden: Dr. W. Zorn, +49 361 574041-417, H. Heß +49 361 574041-312 und E. Ullmann +49 361 574041-141.
C58: wilfried.zorn@tll.thueringen.de
C59: hubert.hess@tll.thueringen.de
C60: eric.ullmann@tll.thueringen.de
C61: Für programminterne Fragen kann Herr Thomas Heidenreich (Sächsisches Landesamt für Umwelt, Landwirtschaft und Geologie; LfULG) als Programmentwickler Auskunft geben (Tel.Nr: 034222 46-2205).
A62: Link zu LAGERKA: | C62: www.thueringen.de/th9/tll/publikationen/software

Sheet JNS-Th
A1: Mittelwerte Jahresniederschlag für den Zeitraum 1981-2010 Quelle:DWD Hr. F. Böttcher; 23.03.2018
A2: Kreis | B2: Gemeinde | C2: Mittlerer Jahresniederschlag
A3: Altenburger-Land | B3: Altenburg | C3: 613
A4: Altenburger-Land | B4: Altkirchen | C4: 613
A5: Altenburger-Land | B5: Dobitschen | C5: 613
A6: Altenburger-Land | B6: Drogen | C6: 613
A7: Altenburger-Land | B7: Ehrenberg | C7: 613
A8: Altenburger-Land | B8: Fockendorf | C8: 613
A9: Altenburger-Land | B9: Frohnsdorf | C9: 613
A10: Altenburger-Land | B10: Gerstenberg | C10: 613
A11: Altenburger-Land | B11: Göhren | C11: 613
A12: Altenburger-Land | B12: Göllnitz | C12: 613
A13: Altenburger-Land | B13: Göpfersdorf | C13: 613
A14: Altenburger-Land | B14: Gößnitz | C14: 630
A15: Altenburger-Land | B15: Großröda | C15: 613
A16: Altenburger-Land | B16: Heukewalde | C16: 613
A17: Altenburger-Land | B17: Heyersdorf | C17: 613
A18: Altenburger-Land | B18: Jonaswalde | C18: 613
A19: Altenburger-Land | B19: Jückelberg | C19: 683
A20: Altenburger-Land | B20: Kriebitzsch | C20: 613
A21: Altenburger-Land | B21: Langenleuba-Niederhain | C21: 613
A22: Altenburger-Land | B22: Löbichau | C22: 613
A23: Altenburger-Land | B23: Lödla | C23: 613
A24: Altenburger-Land | B24: Lucka | C24: 613
A25: Altenburger-Land | B25: Lumpzig | C25: 619
A26: Altenburger-Land | B26: Mehna | C26: 613
A27: Altenburger-Land | B27: Meuselwitz | C27: 614
A28: Altenburger-Land | B28: Monstab | C28: 613
A29: Altenburger-Land | B29: Nöbdenitz | C29: 613
A30: Altenburger-Land | B30: Nobitz | C30: 613
A31: Altenburger-Land | B31: Ponitz | C31: 636
A32: Altenburger-Land | B32: Posterstein | C32: 666
A33: Altenburger-Land | B33: Rositz | C33: 613
A34: Altenburger-Land | B34: Schmölln | C34: 613
A35: Altenburger-Land | B35: Starkenberg | C35: 613
A36: Altenburger-Land | B36: Thonhausen | C36: 613
A37: Altenburger-Land | B37: Treben | C37: 613
A38: Altenburger-Land | B38: Vollmershain | C38: 613
A39: Altenburger-Land | B39: Wildenbörten | C39: 613
A40: Altenburger-Land | B40: Windischleuba | C40: 579
A41: Altenburger-Land | B41: Ziegelheim | C41: 613
A42: Eichsfeld | B42: Am Ohmberg | C42: 727
A43: Eichsfeld | B43: Arenshausen | C43: 727
A44: Eichsfeld | B44: Asbach-Sickenberg | C44: 727
A45: Eichsfeld | B45: Berlingerode | C45: 719
A46: Eichsfeld | B46: Bernterode (bei Heilbad Heiligenstadt) | C46: 727
A47: Eichsfeld | B47: Birkenfelde | C47: 727
A48: Eichsfeld | B48: Bockelnhagen | C48: 727
A49: Eichsfeld | B49: Bodenrode-Westhausen | C49: 727
A50: Eichsfeld | B50: Bornhagen | C50: 723
A51: Eichsfeld | B51: Brehme | C51: 727
A52: Eichsfeld | B52: Breitenworbis | C52: 727
A53: Eichsfeld | B53: Buhla | C53: 727 | D53: x
A54: Eichsfeld | B54: Burgwalde | C54: 727
A55: Eichsfeld | B55: Büttstedt | C55: 727
A56: Eichsfeld | B56: Deuna | C56: 727
A57: Eichsfeld | B57: Dieterode | C57: 727
A58: Eichsfeld | B58: Dietzenrode/Vatterode | C58: 727
A59: Eichsfeld | B59: Dingelstädt | C59: 752
A60: Eichsfeld | B60: Ecklingerode | C60: 727
A61: Eichsfeld | B61: Effelder | C61: 1060
A62: Eichsfeld | B62: Eichstruth | C62: 727
A63: Eichsfeld | B63: Ferna | C63: 727
A64: Eichsfeld | B64: Freienhagen | C64: 727
A65: Eichsfeld | B65: Fretterode | C65: 727
A66: Eichsfeld | B66: Geisleden | C66: 727
A67: Eichsfeld | B67: Geismar | C67: 727
A68: Eichsfeld | B68: Gerbershausen | C68: 727
A69: Eichsfeld | B69: Gernrode | C69: 727
A70: Eichsfeld | B70: Gerterode | C70: 727
A71: Eichsfeld | B71: Glasehausen | C71: 727
A72: Eichsfeld | B72: Großbartloff | C72: 727
A73: Eichsfeld | B73: Hausen | C73: 727
A74: Eichsfeld | B74: Haynrode | C74: 727
A75: Eichsfeld | B75: Heilbad Heiligenstadt | C75: 831
A76: Eichsfeld | B76: Helmsdorf | C76: 581
A77: Eichsfeld | B77: Heuthen | C77: 727
A78: Eichsfeld | B78: Hohengandern | C78: 727
A79: Eichsfeld | B79: Hohes Kreuz | C79: 768
A80: Eichsfeld | B80: Hundeshagen | C80: 727
A81: Eichsfeld | B81: Kallmerode | C81: 727
A82: Eichsfeld | B82: Kefferhausen | C82: 727
A83: Eichsfeld | B83: Kella | C83: 727
A84: Eichsfeld | B84: Kirchgandern | C84: 727
A85: Eichsfeld | B85: Kirchworbis | C85: 727
A86: Eichsfeld | B86: Kleinbartloff | C86: 727
A87: Eichsfeld | B87: Kreuzebra | C87: 727
A88: Eichsfeld | B88: Krombach | C88: 727
A89: Eichsfeld | B89: Küllstedt | C89: 727
A90: Eichsfeld | B90: Leinefelde-Worbis | C90: 727
A91: Eichsfeld | B91: Lenterode | C91: 727
A92: Eichsfeld | B92: Lindewerra | C92: 727
A93: Eichsfeld | B93: Lutter | C93: 727
A94: Eichsfeld | B94: Mackenrode | C94: 727
A95: Eichsfeld | B95: Marth | C95: 727
A96: Eichsfeld | B96: Niederorschel | C96: 727
A97: Eichsfeld | B97: Pfaffschwende | C97: 727
A98: Eichsfeld | B98: Reinholterode | C98: 703
A99: Eichsfeld | B99: Rohrberg | C99: 727
A100: Eichsfeld | B100: Röhrig | C100: 727
A101: Eichsfeld | B101: Rustenfelde | C101: 727
A102: Eichsfeld | B102: Schachtebich | C102: 727
A103: Eichsfeld | B103: Schimberg | C103: 727
A104: Eichsfeld | B104: Schönhagen | C104: 727
A105: Eichsfeld | B105: Schwobfeld | C105: 727 | D105: x
A106: Eichsfeld | B106: Sickerode | C106: 727
A107: Eichsfeld | B107: Silberhausen | C107: 727
A108: Eichsfeld | B108: Sonnenstein | C108: 727
A109: Eichsfeld | B109: Steinbach (EIC) | C109: 727
A110: Eichsfeld | B110: Steinheuterode | C110: 727
A111: Eichsfeld | B111: Steinrode | C111: 727
A112: Eichsfeld | B112: Tastungen | C112: 727
A113: Eichsfeld | B113: Teistungen | C113: 727
A114: Eichsfeld | B114: Thalwenden | C114: 727
A115: Eichsfeld | B115: Uder | C115: 716
A116: Eichsfeld | B116: Volkerode | C116: 727
A117: Eichsfeld | B117: Wachstedt | C117: 896
A118: Eichsfeld | B118: Wahlhausen | C118: 727
A119: Eichsfeld | B119: Wehnde | C119: 727
A120: Eichsfeld | B120: Wiesenfeld | C120: 727
A121: Eichsfeld | B121: Wingerode | C121: 727
A122: Eichsfeld | B122: Wüstheuterode | C122: 727
A123: Eichsfeld | B123: Zwinge | C123: 767
A124: Gotha | B124: Ballstädt | C124: 805
A125: Gotha | B125: Bienstädt | C125: 805
A126: Gotha | B126: Brüheim | C126: 805
A127: Gotha | B127: Bufleben | C127: 805
A128: Gotha | B128: Crawinkel | C128: 825
A129: Gotha | B129: Dachwig | C129: 534
A130: Gotha | B130: Döllstädt | C130: 805
A131: Gotha | B131: Drei Gleichen | C131: 587
A132: Gotha | B132: Emleben | C132: 805
A133: Gotha | B133: Eschenbergen | C133: 805
A134: Gotha | B134: Friedrichroda | C134: 805
A135: Gotha | B135: Friedrichswerth | C135: 805
A136: Gotha | B136: Friemar | C136: 593
A137: Gotha | B137: Georgenthal/Thür. Wald | C137: 805
A138: Gotha | B138: Gierstädt | C138: 534
A139: Gotha | B139: Goldbach | C139: 805
A140: Gotha | B140: Gotha | C140: 593
A141: Gotha | B141: Gräfenhain | C141: 805
A142: Gotha | B142: Großfahner | C142: 547
A143: Gotha | B143: Günthersleben-Wechmar | C143: 805
A144: Gotha | B144: Haina (GTH) | C144: 689
A145: Gotha | B145: Herrenhof | C145: 805
A146: Gotha | B146: Hochheim | C146: 805
A147: Gotha | B147: Hohenkirchen | C147: 805
A148: Gotha | B148: Hörsel | C148: 805
A149: Gotha | B149: Leinatal | C149: 805
A150: Gotha | B150: Luisenthal | C150: 1009
A151: Gotha | B151: Molschleben | C151: 547
A152: Gotha | B152: Nesse-Apfelstädt | C152: 547
A153: Gotha | B153: Nottleben | C153: 547
A154: Gotha | B154: Ohrdruf | C154: 805
A155: Gotha | B155: Petriroda | C155: 805
A156: Gotha | B156: Pferdingsleben | C156: 805 | D156: x
A157: Gotha | B157: Remstädt | C157: 805
A158: Gotha | B158: Schwabhausen | C158: 805
A159: Gotha | B159: Sonneborn | C159: 805
A160: Gotha | B160: Tabarz/Thür. Wald | C160: 805
A161: Gotha | B161: Tambach-Dietharz/Thür. Wald | C161: 983
A162: Gotha | B162: Tonna | C162: 538
A163: Gotha | B163: Tröchtelborn | C163: 805
A164: Gotha | B164: Tüttleben | C164: 547
A165: Gotha | B165: Waltershausen | C165: 805
A166: Gotha | B166: Wangenheim | C166: 805
A167: Gotha | B167: Warza | C167: 805
A168: Gotha | B168: Westhausen (GTH) | C168: 805
A169: Gotha | B169: Wölfis | C169: 805
A170: Gotha | B170: Zimmernsupra | C170: 547
A171: Greiz | B171: Auma-Weidatal | C171: 685
A172: Greiz | B172: Bad Köstritz | C172: 609
A173: Greiz | B173: Berga/Elster | C173: 685
A174: Greiz | B174: Bethenhausen | C174: 619
A175: Greiz | B175: Bocka | C175: 619
A176: Greiz | B176: Brahmenau | C176: 619
A177: Greiz | B177: Braunichswalde | C177: 641
A178: Greiz | B178: Caaschwitz | C178: 619
A179: Greiz | B179: Crimla | C179: 619
A180: Greiz | B180: Endschütz | C180: 619
A181: Greiz | B181: Gauern | C181: 619
A182: Greiz | B182: Greiz | C182: 640
A183: Greiz | B183: Großenstein | C183: 619
A184: Greiz | B184: Harth-Pöllnitz | C184: 659
A185: Greiz | B185: Hartmannsdorf (GRZ) | C185: 619
A186: Greiz | B186: Hilbersdorf | C186: 619
A187: Greiz | B187: Hirschfeld | C187: 619
A188: Greiz | B188: Hohenleuben | C188: 685
A189: Greiz | B189: Hundhaupten | C189: 619
A190: Greiz | B190: Kauern | C190: 619
A191: Greiz | B191: Korbußen | C191: 619
A192: Greiz | B192: Kraftsdorf | C192: 619
A193: Greiz | B193: Kühdorf | C193: 619
A194: Greiz | B194: Langenwetzendorf | C194: 685
A195: Greiz | B195: Langenwolschendorf | C195: 685
A196: Greiz | B196: Lederhose | C196: 732
A197: Greiz | B197: Linda b. Weida | C197: 662
A198: Greiz | B198: Lindenkreuz | C198: 662
A199: Greiz | B199: Mohlsdorf-Teichwolframsdorf | C199: 681
A200: Greiz | B200: Münchenbernsdorf | C200: 662
... 662 more rows

Sheet Ergebnis (hidden)
B1: Berechnungsschema / Ergebnisbeleg – Ermittlung Lagerkapazität
C2: Einheit | D2: Wert | F2: Betrieb:
G3: Mustermann
A4: 1 | B4: anzurechnender Jahresniederschlag (Durchschn. langjähriges Niederschlagsmittel abzüglich 30 % Verdunstung) | C4: m³/m² * Jahr | D4: =0.7*Betrieb!$F$4/1000 -> 0.7 | F4: Unternehmensnummer: | H4: =Deckblatt!E25 -> 160000000000 | I4: =Deckblatt!F25 -> 0 | J4: =Deckblatt!G25 -> 0 | K4: =Deckblatt!H25 -> 0 | L4: =Deckblatt!I25 -> 0 | M4: =Deckblatt!J25 -> 0 | N4: =Deckblatt!K25 -> 0 | O4: =Deckblatt!L25 -> 0 | P4: =Deckblatt!M25 -> 0 | Q4: =Deckblatt!N25 -> 0 | R4: =Deckblatt!O25 -> 0 | S4: =Deckblatt!P25 -> 0
A5: 2 | B5: Lagerkapazitätsberechnung für Festmist und feste Gärreste | C5: --
A6: 3 | B6: Lagerraum im Stall (Tiefstreu) | C6: m³ | D6: =Betrieb!$M$24 -> 0 | F6: Die Berechnung erfolgte auf der Grundlage
A7: 4 | B7: + Lagerraum Festmistlager | C7: m³ | D7: =Betrieb!$T$24 -> 0 | F7: der Angaben/Daten vom:
A8: 5 | B8: = Summe verfügbarer Lagerraum | C8: m³ | D8: =D7+D6 -> 0
A9: 6 | B9: Summe Anfall Festmist und feste Gärreste pro Tag (Anfall Tabelle 1 / 30) | C9: m³/Tag | D9: =Betrieb!$J$8/((Betrieb!$A$7)*30) ->  | H9: (Datenerfassung)
A10: 7 | B10: Lagerkapazität Festmist, f. Gärreste - Lagerraum m³ (Z. 5) /Anfall m³/Tag (Z. 6) | C10: Tage | D10: =D8/D9 -> 
A11: 8 | B11: Lagerkapazitätsberechnung für Flüssigmist und flüssige Gärreste | C11: -- | F11: entsprechend den Hinweisen des
A12: 9 | B12: Lagerraum (Bruttorauminhalt) | C12: m³ | D12: =Betrieb!$L$58-Betrieb!$Q$51 -> 0 | F12: Sächsischen Staatsministeriums für Umwelt und Landwirtschaft
A13: 10 | B13: - Freibord und ggf. Restfüllstand zu Zeile 9 | C13: m³ | D13: =(Betrieb!$L$58-Betrieb!$Q$51)-(Betrieb!$M$58-Betrieb!$Q$49) -> 0 | F13: zur Ermittlung des Fassungsvermögens von Anlagen zur Lagerung
A14: 11 | B14: + anrechenbare Staukanäle | C14: m³ | D14: =Betrieb!$Q$49 -> 0 | F14: von Wirtschaftsdüngern und Gärresten in Umsetzung von
A15: 12 | B15: = verfügbarer Lagerraum Flüssigmiste | C15: m³ | D15: =D12-D13+D14 -> 0 | F15: § 12 der Düngeverordnung (DüV) vom 01.08.2017
A16: 13 | B16: Summe Anfall Flüssigmist (Gülle,Jauche) pro Tag | C16: m³/Tag | D16: =Betrieb!$Q$53 -> 0
A17: 14 | B17: + Anfall Melkhausabwasser pro Tag (0,0085 m³ / Kuhplatz * Tag bzw. 0,0015 m³ / Milchschaf- / Milchziegenplatz * Tag) | C17: m³/Tag | D17: =(Lager_Ri!$G$10+Lager_Schaf!$F$32)/((Betrieb!$A$41+5)*30) -> 0 | F17: Anlagen:
A18: 15 | B18: Einträge (Niederschlags- bzw. Oberflächenwasser, Abwasser, Silosickersaft, Gärreste): | C18: -- | I18: Datenerfassungsblätter
A19: 16 | B19: + auf alle Oberflächen nicht wasserdicht abgedeckter Läger (Festmist, Gülle, Jauche) | C19: m³/Tag | D19: =(Betrieb!$J$20+Betrieb!$V$58)/((Betrieb!$A$41+5)*30) -> 0
A20: 17 | B20: + auf die Hälfte der Oberfläche Siloanlage (wenn eingeleitet wird) | C20: m³/Tag | D20: =Betrieb!$U$27/((Betrieb!$A$41+5)*30) -> 0
A21: 18 | B21: + auf alle sonstige befestigten Flächen (wenn eingeleitet wird) | C21: m³/Tag | D21: =Betrieb!$U$24/((Betrieb!$A$41+5)*30) -> 0
A22: 19 | B22: + sonstige Abwässer | C22: m³/Tag | D22: 0
A23: 20 | B23: + eingeleitete Gärrückstände | C23: m³/Tag | D23: =Betrieb!$J$39/((Betrieb!$A$41+5)*30) -> 0
A24: 21 | B24: - Minderanfall (laut gesondertem Nachweis) | C24: m³/Tag | D24: 0
A25: 22 | B25: + Anfall Silosickersaft (wenn eingeleitet wird) | C25: m³/Tag | D25: =Betrieb!$U$29/((Betrieb!$A$41+5)*30) -> 0
A26: 23 | B26: = Summe Anfall Flüssigmist pro Tag | C26: m³/Tag | D26: =16:16+17:17+19:19+20:20+21:21+22:22+23:23+24:24+25:25 -> 0
A27: 24 | B27: Lagerraumbedarf für 180 Tage (Zeile 23 * 180) | C27: m³ | D27: =$D$26*180 -> 0
A28: 25 | B28: Lagerkapazität ((Lagerraum m³, Zeile12 – Anfall Silosickersaft m³, Zeile 22) / Summe Anfall Wirtschaftsdünger m³/ Tag, Zeile 2) | C28: Tage | D28: =($D$15/$D$26) ->  | F28: Ort/Datum | K28: Unterschrift Bearbeiter Stempel LfULG
A29: 26 | B29: fehlender Lagerraum | C29: % | D29: =100-$D$15*100/$D$27 -> 

Sheet Tipla_Mi
A1: Betrieb: | C1: =Deckblatt!E15 ->  | F1: Variante: | G1: 1 | H1: =Deckblatt!O31 -> 
A2: Tierbestands- und Tierplatzkalkulation für die Milchproduktion
A3: Ausgangsbedingungen: | D3: R | E3: Referenzmenge = R | G3: Tierplätze = T
A4: =IF(D3="R","Referenzmenge Milch in kg:","Tierplätze gesamt:") -> Referenzmenge Milch in kg: | D4: 1000000 | E4: bei Fett % | H4: 4.15
A5: Milchleistung (Markt) kg/T.u.a | D5: 10000 | E5: bei Fett % | H5: 4.15
A6: Tierbestand: | C6: Kühe | D6: =IF(D3="T",INT(C19+C22),ROUND((D4*H4)/(D5*H5),0)) -> 100 | E6: eigene Reproduktion J/N ? | H6: j
A7: Reproduktionsrate in %: | D7: 35 | E7: =IF(H6="J","Färsenverkauf J/N ?","") -> Färsenverkauf J/N ? | H7: j
A8: Abkalberate in %: | D8: 105 | E8: =IF(H7="j","Spermasexing Färsen J/N ?","") -> Spermasexing Färsen J/N ? | H8: n
A9: Zwischenkalbezeit in Tagen: | D9: 415 | E9: =IF(H8="j"," Anteil weibl. Kälber in %","") -> 
A10: Laktationstage gesamt: | D10: =D9-H10 -> 359 | E10: Trockenstehzeit in Tagen: | H10: 56
A11: dav. im Abkalbebereich: | D11: 1 | E11: dav. im Abkalbebereich: | H11: 5
A12: Haltungsdauer Ko-Kälber (Tage): | D12: 14 | E12: Kälberverluste Ko in % | H12: 12
A13: Ausstallungsrhythmus der Kälber in d | D13: 14 | E13: =IF(H8="j","",IF(E43>D6*D8/100*((100-H12)/100)*0.49,"Achtung: Anz. Weibl. Kälber nicht ausreichend !","")) -> 
A14: Abkalbe- | B14: Jan | C14: Feb | D14: März | E14: April | F14: Mai | G14: Juni | H14: Maximum
A15: verlauf % | B15: 9 | C15: 9 | D15: 9 | E15: 8 | F15: 8 | G15: 7 | H15: =MAXA(B15:G15,B17:G17,) -> 9
A16: Summe | B16: Juli | C16: Aug | D16: Sept | E16: Okt | F16: Nov | G16: Dez | H16: Minimum
A17: =SUM(B15:G15)+SUM(B17:G17) -> 100 | B17: 7 | C17: 8 | D17: 8 | E17: 9 | F17: 9 | G17: 9 | H17: =MINA(B15:G15,B17:G17) -> 7
C18: Durchschn. | D18: Max. | E18: Min. | F18: Tierplätze | H18: Auslastung
A19: Kühe laktierend: | C19: =C21+C20 -> 86.5060241 | F19: =INT(F20+F21+0.5) -> 88 | H19: %
A20: dav. Produkt.-bereich: | C20: =IF(D3="T",F20/100*H20,(D10-D11)/D9*D6) -> 86.26506024 | D20: =C19-E21 -> 86.27588711 | E20: =C19-D21 -> 86.21013367 | F20: =IF(D3="T",INT(D4-C27)/D9*(D10-D11),C20/H20*100) -> 87.57874136 | H20: 98.5
A21: dav. Abkalbebereich: | C21: =IF(D3="T",F21/100*H21,D11/(D10+H10)*D6) -> 0.2409638554 | D21: =D11/365*D6*H15/8.333333 -> 0.2958904228 | E21: =D11/365*D6*H17/(100/12) -> 0.2301369863 | F21: =IF(D3="T",(D4-C27)/D9*D11,D21/H21*100) -> 0.4931507047 | H21: 60
A22: Kühe trocken: | C22: =C24+C23 -> 13.4939759 | F22: =INT(F23+F24+0.5) -> 15
A23: dav. Produkt.-bereich: | C23: =IF(D3="T",F23/100*H23,(H10-H11)/(D10+H10)*D6) -> 12.28915663 | D23: =C22-E24 -> 12.48192771 | E23: =C22-D24 -> 12.19277108 | F23: =IF(D3="T",(D4-C27)/D9*(H10-H11),C23/H23*100) -> 13.07357088 | H23: 94
A24: dav. Abkalbebereich: | C24: =IF(D3="T",F24/100*H24,H11/(H10+D10)*D6) -> 1.204819277 | D24: =C24*H15/(100/12) -> 1.301204819 | E24: =C24*H17/(100/12) -> 1.012048193 | F24: =IF(D3="T",(D4-C27)/D9*H11,D24/H24*100) -> 2.365826944 | G24: Stalleinh. | H24: 55
A25: Kälber (K0) | C25: =INT(D6*D8/100*D12/365+0.5) -> 4 | D25: =C25*H15/(100/12) -> 4.32 | E25: =C25*H17/(100/12) -> 3.36 | F25: =INT(D6*D8/100/D9*D13/H25*100+0.5) -> 4 | G25: =INT((D12+D13+4)/D13+0.5) -> 2 | H25: 80
A26: Kuhplätze gesamt : | C26: =H26+H27+C27 -> 106 | F26: dav. Produkt-.bereich: | H26: =INT(F23+F20+0.5) -> 101
A27: dav. Krankenplätze : | C27: =IF(D3="T",INT(D4*D27/100),INT(D6*D27/100)) -> 2 | D27: 2 | E27: % | F27: dav. Abkalbebereich: | H27: =INT(F24+F21+0.5) -> 3
A28: Kälberplätze (K0) : | C28: =(F25*G25) -> 8 | F28: oder Kälberhütten | H28: =D6*D8/100/D9*(D12+10) -> 6.072289157
A29: =IF(H6="J",IF(H7="J","Tierbestände und Tierplätze für Kälber und Jungrinder - Verkauf von Färsen","Tierbestände und Tierplätze für Kälber und Jungrinder - eigene Reproduktion"),"") -> Tierbestände und Tierplätze für Kälber und Jungrinder - Verkauf von Färsen
A30: Reproduktions- | C30: Haltungs- | D30: Selektion/ | E30: jährlicher | F30: Durchschn.- | G30: Anzahl | H30: Stallplatz-
A31: rate | C31: dauer | D31: Verluste | E31: =IF(H7="J","Anfall","Bedarf") -> Anfall | F31: bestand | G31: Tierpl. | H31: auslastung
A32: =D7/100 -> 0.35 | C32: Tage | D32: % | E32: Tiere | F32: Tiere | G32: Stck. | H32: %
A33: trag. Färsen | C33: 120 | D33: 1 | E33: =IF(H6="J",IF(H7="J",E35*((100-D35)/100),D6*D7/100),0) -> 41.3173477 | F33: =ROUND(E33*C33/365,0) -> 14 | G33: =INT(F33/(H33/100)) -> 15 | H33: 93
A34: 24.-27.Monat
A35: Jungrinder z. Bes. | C35: 150 | D35: 5 | E35: =IF(H6="J",IF(H7="J",E37*((100-D37)/100),E33/((100-D35)/100)),0) -> 43.49194495 | F35: =ROUND(E35*C35/365,0) -> 18 | G35: =INT(F35/(H35/100)) -> 18 | H35: 95
A36: 19.-23. Monat
A37: Jungrinder | C37: 180 | D37: 1 | E37: =IF(H6="J",IF(H7="J",E39*((100-D39)/100),E35/((100-D37)/100)),0) -> 43.93125752 | F37: =ROUND(E37*C37/365,0) -> 22 | G37: =INT(F37/(H37/100)) -> 22 | H37: 97.5
A38: 13.-18.Monat
A39: Jungrinder | C39: 180 | D39: 1 | E39: =IF(H6="J",IF(H7="J",E41*((100-D41)/100),E37/((100-D39)/100)),0) -> 44.3750076 | F39: =ROUND(E39*C39/365,0) -> 22 | G39: =INT(F39/(H39/100)) -> 22 | H39: 98
A40: 7.-12.Monat
A41: Absatzkälber | C41: 90 | D41: 1 | E41: =IF(H6="J",IF(H7="J",E43*((100-D43)/100),E39/((100-D41)/100)),0) -> 44.82324 | F41: =ROUND(E41*C41/365,0) -> 11 | G41: =INT(F41/(H41/100)) -> 11 | H41: 92
A42: 4.-6. Monat
A43: Tränkkälber | C43: 80 | D43: 1 | E43: =IF(H6="J",IF(H7="J",IF(H8="j",(D6*(D8/100)*0.49+D6*(D7/100)*IF(H9="",0,(H9-49)/100))*(100-H12)/100,D6*(D8/100)*0.49*(100-H12)/100),E41/((100-D43)/100)),0) -> 45.276 | F43: =ROUND(E43*C43/365,0) -> 10 | G43: =INT(F43/(H43/100)) -> 11 | H43: 90
A44: 3. Wo. -3. Mo.
A45: Repodukt. ges.: | C45: =SUM(C33:C44) -> 800 | F45: =SUM(F33:F44) -> 97 | G45: =SUM(G33:G44) -> 99
A46: Entwickler: LfULG, Th. Heidenreich

Sheet TIPLA_S
A1: Betrieb: | B1: =Deckblatt!E15 ->  | F1: Variante: | G1: 1 | H1: =Deckblatt!O31 -> 
A3: Tierbestands- und Tierplatzkalkulation Schweineproduktion
A4: Ausgangsbedingungen: | C4: s | D4: Anz. prod. Sauen =S | F4: Läufer/Prod.-rhyth.=L | H4: Abferkelplätze=A
A6: =IF(C4="s","Anzahl produkt. Sauen:",IF(C4="L","prod. Läufer/Prod.-rhythm.:","Abferkelplätze:")) -> Anzahl produkt. Sauen: | C6: 1000 | D6: Stück | F6: Abferkelrate AS | H6: 82 | I6: %
A7: Durchschnittsbest. Sauen | C7: =D28+D31+D34 -> 1054.227089 | D7: Stück | F7: Abferkelrate JS | H7: 75 | I7: %
A8: Säugezeit: | C8: 28 | D8: Tage | F8: Reproduktionsrate | H8: 26 | I8: %
A9: Produktionsrhythmus: | C9: 7 | D9: =IF((B28+B31+B34)/C9=INT((B28+B31+B34)/C9),"Tage","Produktionsrhythmus nicht möglich!, !Wurfabstand!!") -> Tage
A10: Wurfabstand | C10: =C8+5+114 -> 147 | D10: Tage | F10: nicht normger. Mastl. | H10: 2 | I10: %
A11: leb. geb. Ferkel/Wurf | C11: 10.5 | D11: Stück | F11: Verl. u. Selekt. JS | H11: 3 | I11: %
A12: Verkaufsmasse Läufer | C12: 28 | D12: kg | F12: Verluste Ferkel | H12: 11 | I12: %
A13: LMZ Ferkel: | C13: 420 | D13: g/Tier*d | F13: Verluste Läufer | H13: 3 | I13: %
A14: eigene Reproduktion J/N?: | C14: n | D14: Verkauf von Jungsauen J/N ?: | H14: n
D15: =IF(H14="J","Anzahl JS/Prod.-rhythm. ?:","") -> 
A16: LMZ L1 bei LM kg | B16: 60 | C16: 580 | D16: g/Tier*d | F16: Verluste L1 | H16: 1 | I16: %
A17: LMZ L2 bei LM kg | B17: 95 | C17: 650 | D17: g/Tier*d | F17: Verluste L2 | H17: 1 | I17: %
A18: Selektion L1 | C18: 15.4 | D18: % | F18: Selektion L2 | H18: 0 | I18: %
A19: eigene Mast J/N?: | C19: j
A20: Ausstallungmasse: | C20: 115 | D20: kg | F20: Verendungen: | H20: 1 | I20: %
A21: Masttagszunahme: | C21: 750 | D21: g | F21: Notschlachtungen: | H21: 0 | I21: %
A22: Ergebnisse:
A23: Produkt.- | B23: Produk- | C23: Prozeß- | D23: Tierbestand (Stück) | F23: Stall- | G23: Tierplätze (Stück)
A24: abschnitt | B24: tionszeit | C24: zeit | D24: gesamt | E24: je Einheit | F24: einheiten | G24: gesamt | H24: je Einheit
A26: Jungsauen(S0) | B26: 53 | C26: =INT(B26/C9)*C9+C9 -> 56 | D26: =B26/C9*E26 -> 128.8542909 | E26: =(E31*(H8/100)/(H7/100))/((100-H11)/100) -> 17.01849125 | F26: =C26/C9 -> 8 | G26: =INT(H26+0.5)*F26 -> 144 | H26: =E26/0.95 -> 17.91420131
A28: Deckbereich (S1) | B28: 32 | C28: =INT(B28/C9)*C9+C9 -> 35 | D28: =B28/C9*E28 -> 271.914164 | E28: =(E31*((100-H8)/100)/(H6/100))+(E31*(H8/100)/(H7/100)) -> 59.48122338 | F28: =C28/C9 -> 5 | G28: =(INT(H28+0.5)+INT(H29+0.5))*F28 -> 300 | H28: =E31*((100-H8)/100)/(H6/100) -> 42.97328688 | I28: AS
F29: Eberplätze | G29: =INT(SQRT(C6/9)-0.5) -> 10 | H29: =E31*(H8/100)/(H7/100) -> 16.50793651 | I29: JS
G30: =INT(H30)*F28 -> 10 | H30: =(H29+H28)*0.05 -> 2.974061169 | I30: Res.
A31: Wartebereich | B31: =114-B28 -> 82 | C31: =INT(B31/C9)*C9+C9 -> 84 | D31: =B31/C9*E31 -> 557.8231293 | E31: =IF(C4="S",C6/((B31+B34+B28)/C9),E34) -> 47.61904762 | F31: =C31/C9 -> 12 | G31: =INT((H31+H32))*F31 -> 576 | H31: =(E31*(100-H8)/100) -> 35.23809524 | I31: AS
A32: (S2) | H32: =(E31*(H8/100)+0.5) -> 12.88095238 | I32: JS
G33: =INT(H33)*F31 -> 24 | H33: =(H32+H31)*0.05 -> 2.405952381 | I33: Res.
A34: Abferkelber.(S3) | B34: =C8+5 -> 33 | C34: =INT(B34/C9)*C9+C9 -> 35 | D34: =B34/C9*E34 -> 224.4897959 | E34: =IF(C4="S",C6/((B34+B28+B31)/C9),IF(C4="L",C6/((100-H10)/100)/((100-H13)/100)/((100-H12)/100)/C11,G34/F34)) -> 47.61904762 | F34: =C34/C9 -> 5 | G34: =IF(C4="A",C6,INT(H34+0.5)*F34) -> 240 | H34: =E34 -> 47.61904762
G35: =INT(H35+0.5)*F34 -> 15 | H35: =H34*0.07 -> 3.333333333 | I35: Res.
A36: Ferkel (F) | B36: =C8 -> 28 | D36: =INT(B36/C9*E36+0.5) -> 1890 | E36: =E34*C11*(100-H12/2)/100 -> 472.5
A38: Läufer (LM0) | B38: =INT((C12-(1.3+0.23*C8))/C13*1000+0.5) -> 48 | C38: =IF(INT(B38/C9)*C9+C9=B38,INT(B38/C9)*C9+2*C9,INT(B38/C9)*C9+C9) -> 49 | D38: =B38/C9*E38 -> 3005.657143 | E38: =E34*C11*(100-H12)/100*((100-H13/2)/100) -> 438.325 | F38: =C38/C9 -> 7 | G38: =INT(H38)*F38 -> 3115 | H38: =E34*C11*(100-H12)/100 -> 445
A39: =IF(H14="J","eigene Reproduktion und Jungsauenverkauf :","eigene Reproduktion :") -> eigene Reproduktion :
A40: Jungschw. (L1) | B40: =IF(C14="J",(B16-C12)*1000/C16,IF(H14="J",(B16-C12)*1000/C16,0)) -> 0 | C40: =IF(B40=0,0,INT(B40/C9)*C9+C9) -> 0 | D40: =B40/C9*E40 -> 0 | E40: =E42/((100-C18)/100)/((100-H16)/100) -> 0 | F40: =C40/C9 -> 0 | G40: =INT(H40+0.5)*F40 -> 0 | H40: =E40/0.95 -> 0
A42: Jungschw. (L2) | B42: =IF(C14="J",INT((B17-B16)*1000/C17),IF(H14="J",INT((B17-B16)*1000/C17),0)) -> 0 | C42: =IF(B42=0,0,INT(B42/C9)*C9+C9) -> 0 | D42: =B42/C9*E42 -> 0 | E42: =IF(C14="J",IF(H14="J",(H15+E26)/((100-H18)/100)/((100-H17)/100),E26/((100-H18)/100)/((100-H17)/100)),IF(H14="J",H15/((100-H18)/100)/((100-H17)/100),0)) -> 0 | F42: =C42/C9 -> 0 | G42: =INT(H42+0.5)*F42 -> 0 | H42: =E42/0.95 -> 0
A43: bei eigener Mast:
A44: Mastschweine | B44: =IF(C19="J",(C20-C12)/(C21/1000),0) -> 116 | C44: =IF(B44=0,0,INT((B44+C9)/C9)*C9) -> 119 | D44: =B44/C9*E44 -> 6939.89604 | E44: =IF(C19="J",(D47+((I47)/365*C9))*(100-(H20+H21/2))/100,0) -> 418.78683 | F44: =C44/C9 -> 17 | G44: =INT(H44+0.5)*F44 -> 7191 | H44: =IF(C19="N",0,(D47+I47/365*7)) -> 423.017
G45: =ROUND(28/C9*H44*0.12,-1) -> 200 | H45: empfohlene Res.
A46: Jahresproduktion:
A47: prod. Mastläufer/ Prod.-rhythmus | D47: =E34*C11*(100-H12)/100*((100-H13)/100)*(100-H10)/100-E40 -> 423.017 | E47: selektierte Jungschweine L1 zur Mast: | I47: =E40*365/C9*(C18/100) -> 0
A48: verkaufsfähige Mastläufer/Jahr: | D48: =IF(C19="J",0,IF(OR(C14="J",H14="J"),E34*C11*(100-H12)/100*((100-H13)/100)*((100-H10)/100)*365/C9-E40*365/C9,E34*C11*(365/C9)*(100-H12)/100*((100-H13)/100)*((100-H10)/100))) -> 0 | E48: selektierte Jungsauen aus L2: | I48: =E42*365/C9*H18/100 -> 0
A49: produzierte Jungsauen/Jahr: | D49: =E42*((100-H17/2)/100)*((100-H18)/100)*365/C9 -> 0
A50: produzierte Schlachtschweine/Jahr: | D50: =IF(C19="J",G44*365/C44*(100-H20-H21)/100,0) -> 21835.86429 | E50: nicht normgerechte Mastläufer: | I50: =E34*C11*(100-H12)/100*((100-H13)/100)*(H10/100)*365/C9 -> 450.1492857
A51: gemerzte Sauen: | D51: =E26*365/C9*(100-H11)/100 -> 860.7709751 | E51: Notschlachtungen aus Mast: | I51: =IF(C19="J",G44*365/C44*H21/100,0) -> 0
A54: Entwickler: MLU, A. Rudovsky; LfULG, Th. Heidenreich

Sheet WD-Anfall
A1: Richtwerte für den monatlichen Wirtschaftsdüngeranfall im Stall pro Tier
A2: (Oberflächenwasser- und Silosickersafteinleitungen in die Gülle- und/oder Jauchelager sind extra zu erfassen)
A3: Tierart | B3: Flachlauf-, Tretmist 1)- und Anbindestall mit Einstreu | E3: Tiefstreustall, ohne separaten Fressbereich | F3: Tiefstreustall, | H3: Laufstall, Anbindestall
F4: mit separatem Fressbereich
A5: Rinder | B5: Frischmist | C5: Stallmist | D5: Jauche | E5: Stallmist | F5: Stallmist | G5: Gülle | H5: Gülle
B6: [t/Tier] | C6: [m³/Tier] | D6: [m³/Tier] | E6: [m³/Tier] | F6: [m³/Tier] | G6: [m³/Tier] | H6: [m³/Tier]
A7: Zuchtkälber
A8: Kälber bis 3 Monate (ohne Mastkälber) | B8: 0.26 | C8: 0.31 | D8: 0.03 | E8: 0.23 | F8: 0.1 | G8: 0.12 | H8: 0.21
A9: Kälber über 3 bis 6 Monate (ohne Mastkälber) | B9: 0.34 | C9: 0.41 | D9: 0.05 | E9: 0.31 | F9: 0.14 | G9: 0.19 | H9: 0.35
A10: Jungrinder
A11: Jungrinder über 6 Monate bis 1 Jahr | B11: 0.52 | C11: 0.63 | D11: 0.13 | E11: 0.47 | F11: 0.21 | G11: 0.31 | H11: 0.56
A12: Jungrinder/Färsen über 1 Jahr bis 2 Jahre | B12: 0.85 | C12: 1.02 | D12: 0.27 | E12: 0.77 | F12: 0.35 | G12: 0.55 | H12: 1
A13: Färsen über 2 Jahre | B13: 1.03 | C13: 1.24 | D13: 0.38 | E13: 0.96 | F13: 0.43 | G13: 0.73 | H13: 1.32
A14: Mastrinder
A15: Mastkälber bis 3 Monate2) | B15: 0.22 | C15: 0.27 | D15: 0.07 | E15: 0.2 | F15: 0.09 | G15: 0.22 | H15: 0.4
A16: Mastkälber über 3 bis 6 Monate2) | B16: 0.23 | C16: 0.28 | D16: 0.11 | E16: 0.22 | F16: 0.1 | G16: 0.27 | H16: 0.5
A17: Mastrinder über 6 Monate bis 1 Jahr | B17: 0.38 | C17: 0.46 | D17: 0.24 | E17: 0.4 | F17: 0.18 | G17: 0.35 | H17: 0.63
A18: Mastrinder über 1 Jahr bis 2 Jahre | B18: 0.5 | C18: 0.6 | D18: 0.42 | E18: 0.52 | F18: 0.23 | G18: 0.41 | H18: 0.74
A19: Mastrinder über 2 Jahre (einschl. Zuchtbullen) | B19: 0.64 | C19: 0.77 | D19: 0.45 | E19: 0.67 | F19: 0.3 | G19: 0.55 | H19: 1
A20: Rosa-Kalbfleisch-Erzeugung 50- 350 kg LM | B20: 0.3 | C20: 0.36 | D20: 0.04 | E20: 0.27 | F20: 0.12 | G20: 0.18 | H20: 0.33
A21: Fresseraufzucht | B21: 0.38 | C21: 0.46 | D21: 0.04 | E21: 0.35 | F21: 0.16 | G21: 0.25 | H21: 0.46
A22: Mutterkühe
A23: Mutter- und Ammenkühe 500 kg incl. 0,9 Kalb | B23: 1 | C23: 1.2 | D23: 0.46 | E23: 1 | F23: 0.45 | G23: 0.73 | H23: 1.33
A24: Mutter- und Ammenkühe 700 kg incl. 0,9 Kalb | B24: 1.32 | C24: 1.59 | D24: 0.5 | E24: 1.35 | F24: 0.6 | G24: 0.92 | H24: 1.67
A25: Mutter- und Ammenkühe 500 kg ohne Kalb | B25: 0.73 | C25: 0.88 | D25: 0.42 | E25: 0.74 | F25: 0.33 | G25: 0.62 | H25: 1.13
A26: Mutter- und Ammenkühe 700 kg ohne Kalb | B26: 1.05 | C26: 1.27 | D26: 0.46 | E26: 1.1 | F26: 0.5 | G26: 0.8 | H26: 1.46
A27: Milchkühe 3)
A28: Milchkuh 5 000 kg (leichte Rassen) | B28: 1.15 | C28: 1.39 | D28: 0.49 | E28: 1.18 | F28: 0.53 | G28: 0.85 | H28: 1.54
A29: Milchkuh 6 000 kg | B29: 1.2 | C29: 1.45 | D29: 0.5 | E29: 1.19 | F29: 0.54 | G29: 0.87 | H29: 1.58
A30: Milchkuh 7 000 kg (leichte Rassen) | B30: 1.23 | C30: 1.48 | D30: 0.52 | E30: 1.2 | F30: 0.54 | G30: 0.89 | H30: 1.62
A31: Milchkuh 8 000 kg | B31: 1.25 | C31: 1.51 | D31: 0.53 | E31: 1.21 | F31: 0.54 | G31: 0.92 | H31: 1.67
A32: Milchkuh 9 000 kg (leichte Rassen) | B32: 1.32 | C32: 1.59 | D32: 0.55 | E32: 1.22 | F32: 0.55 | G32: 0.94 | H32: 1.71
A33: Milchkuh 10 000 kg | B33: 1.33 | C33: 1.6 | D33: 0.57 | E33: 1.23 | F33: 0.55 | G33: 0.96 | H33: 1.75
A34: Milchkuh 12 000 kg | B34: 1.42 | C34: 1.71 | D34: 0.6 | E34: 1.25 | F34: 0.56 | G34: 1.01 | H34: 1.83
A35: Melkhausabwasser4) | H35: 0.255
A36: 1 )Bei Tretmist ist der Jaucheanfall zu halbieren
A37: 2) ohne Melkhausabwasser
A38: 3) bei Milchkühen ergeben sich die Anfallswerte flüssiger Wirtschaftsdünger zuzüglich 0,255 m³
A39: 4) Melkhausabwasser pro Tier und Monat
A41: Rindermist: | B41: 22 - 25 % TS | D41: Rinderjauche: | F41: 3 % TS
A42: Rindergülle: | B42: 11 - 12 % TS | D42: Melkhausabwasser: | F42: 1 % TS,
A46: Fortsetzung der Tabelle 1:
A47: Tierart | B47: Flachstreu | E47: Tiefstreu | F47: ohne Einstreu | G47: Reinigungs-wasser
B48: Frischmist | C48: Frischmist | D48: Jauche1) | E48: Stallmist | F48: Gülle1)
B49: [t/Tier] | C49: [m³/Tier] | D49: [m³/Tier] | E49: [m³/Tier] | F49: [m³/Tier] | G49: [m³/Tier]
A50: Schafe und Ziegen
A51: Schafe unter 1 Jahr und Hammel | B51: 0.074 | C51: 0.114 | E51: 0.08
A52: Mutterschafe | B52: 0.092 | C52: 0.142 | E52: 0.1
A53: Mastlämmer | B53: 0.046 | C53: 0.071 | E53: 0.05
A54: Weibliche Schafe über 1 Jahr (Zutreter) | B54: 0.083 | C54: 0.128 | E54: 0.09
A55: Andere Schafe über 1 Jahr (Böcke) | B55: 0.11 | C55: 0.169 | E55: 0.12
A56: Mutterziegen | B56: 0.083 | C56: 0.128 | E56: 0.09
A57: Andere Ziegen (unter 1 Jahr) | B57: 0.055 | C57: 0.085 | E57: 0.06
A58: Pferde
A59: Pferde unter 6 Monate, Aufzuchtponys bis 3 Jahre | B59: 0.283 | C59: 0.47 | E59: 0.35
A60: Pferde über 6 Monate bis 3 Jahre, Kleinpferde, Ponys | B60: 0.566 | C60: 0.94 | E60: 0.7
A61: Reit- und Zuchtpferde über 3 Jahre | B61: 0.933 | C61: 1.6 | E61: 1.1
A62: Schweine
A63: Zuchtsauen ab 1. Belegung, güst u. tragend | B63: 0.24 | C63: 0.27 | D63: 0.08 | E63: 0.2 | F63: 0.26 | G63: 0.02
A64: Zuchtsauen laktierend | B64: 0.49 | C64: 0.54 | D64: 0.18 | E64: 0.4 | F64: 0.45 | G64: 0.08
A65: Ferkel 8 bis 28 kg | B65: 0.031 | C65: 0.034 | D65: 0.017 | E65: 0.03 | F65: 0.042 | G65: 0.008
A66: Jungsauenaufzucht 28 -95 kg | B66: 0.115 | C66: 0.13 | D66: 0.04 | E66: 0.13 | F66: 0.14 | G66: 0.01
A67: Jungsaueneingliederung 95-135 kg | B67: 0.155 | C67: 0.17 | D67: 0.06 | E67: 0.15 | F67: 0.19 | G67: 0.02
A68: Eberhaltung ab 50 kg | B68: 0.15 | C68: 0.17 | D68: 0.105 | E68: 0.3 | F68: 0.28 | G68: 0.02
A69: Mastschweine 28 bis 115 kg Trockenfütterung | B69: 0.09 | C69: 0.1 | D69: 0.042 | E69: 0.12 | F69: 0.125 | G69: 0.008
A70: Mastschweine 28 bis 115 kg Flüssigfütterung | B70: 0.09 | C70: 0.1 | D70: 0.052 | E70: 0.12 | F70: 0.155 | G70: 0.008
A71: Melkhausabwasser2) | B71: 0.045
A73: 4) bei Milchschafen und -ziegen ergeben sich die Anfallswerte flüssiger Wirtschaftsdünger zuzüglich 0,045 m³
A74: Melkhausabwasser pro Tier und Monat
A76: Schweinemist: | B76: 22 - 25 | C76: % TS, | D76: Schweinegülle (Flüssigfütterung und Jungsauen) | G76: 6 % TS
A77: Pferdemist: | B77: 25 | C77: % TS, | D77: Schweinegülle (Sauen und Ferkel) | G77: 4 % TS
A78: Schafmist: | B78: 40 | C78: % TS, | D78: Schweinegülle (Trockenfütterung) | G78: 7,5 % TS
D79: Schweinejauche: | G79: 3 % TS
A80: Fortsetzung der Tabelle 1:
A81: Tierart | B81: Frischmist | C81: Frischmist | D81: Tiefstreu 1) | E81: Trockenkot 1),2) | F81: Jauche 1),2) | G81: Gülle1)
B82: [t/100 Tiere] | C82: m³/100 Tiere | D82: [m³/100 Tiere] | E82: [m³/100 Tiere] | F82: [m³/100 Tiere] | G82: [m³/100 Tiere]
A83: Geflügel
A84: Legehennen über 6 Monate | B84: 0.1833 | C84: =B84/0.8 -> 0.229125 | D84: 0.25 | E84: 0.25
A85: Küken und Junghennen zur Aufzucht als Legehennen | B85: 0.0583 | C85: =B85/0.8 -> 0.072875 | D85: 0.09 | E85: 0.08
A86: Masthähnchen (Broiler), Mast über 39 d | B86: 0.0984 | C86: 0.123 | D86: 0.12
A87: Masthähnchen (Broiler), Mast über 34 d | B87: 0.0925 | C87: 0.115625 | D87: 0.12
A88: Masthähnchen (Broiler), Mast 30-33 d | B88: 0.0833 | C88: 0.104125 | D88: 0.1
A89: Masthähnchen (Broiler), Mast bis 29 d | B89: 0.0775 | C89: 0.096875 | D89: 0.1
A90: Enten zur Zucht | B90: 0.85 | C90: 1.0625 | D90: 0.8
A91: Mastenten (Pekingenten) | B91: 0.48 | C91: 0.6 | D91: 0.6
A92: Mastenten (Flugenten) | B92: 0.383 | C92: 0.47875 | D92: 0.48
A93: Gänse zur Zucht | B93: 0.95 | C93: 1.1875 | D93: 0.9
A94: Mastgänse (Kurzmast, 5,0 kg) | B94: 0.1383 | C94: 0.172875 | D94: 0.13
A95: Mastgänse (Mittelmast, 6,8 kg) | B95: 0.3117 | C95: 0.389625 | D95: 0.3
A96: Mastgänse (Langmast, 7,8 kg) | B96: 0.5133 | C96: 0.641625 | D96: 0.48
A97: Mastputen (Hennen) bis 17 Wochen | B97: 0.42 | C97: =B97/0.5 -> 0.84 | D97: 0.63
A98: Mastputen (Hähne) bis 21 Wochen | B98: 0.4033 | C98: =B98/0.5 -> 0.8066 | D98: 0.6
A99: Mastputen Hennen ab 6. Woche | B99: 0.5 | C99: 1 | D99: 0.75
A100: Mastputen Hähne ab 6. Woche | B100: 0.50838 | C100: 1.01676 | D100: 0.76
A101: Gemischtgeschlechtliche Mast, incl. Aufzucht | B101: 0.412 | C101: 0.824 | D101: 0.62
A102: Putenaufzucht bis 5 Wochen, gemischtgeschlechtlich | B102: 0.11 | C102: 0.22 | D102: 0.22
A103: Kaninchen
A104: Kaninchen (einschließlich Nachzucht, geschlossenes System) | B104: 10.13 | C104: 10.96 | D104: 8.22 | E104: 3.39 | F104: 4.75 | G104: 7.46
A105: Mastkaninchen | B105: 0.938 | C105: =B105/0.9 -> 1.042222222 | D105: 0.9 | E105: 0.31 | F105: 0.44 | G105: 0.688
A106: Zuchtkaninchen mit Absetzer | B106: 2.325 | C106: 2.583333333 | D106: 2.1 | E106: 0.77 | F106: 1.08 | G106: 1.7
A107: 1) ohne Reinigungsabwasser
A108: 2) Lagerzeit auf den Kotbändern länger als 48 h und Kotbelüftung; bei Kaninchen: Kot-Harn-Trennung
A110: Geflügelmist: | B110: 45 % TS, | C110: Kaninchengülle: | E110: 15 % TS,
A111: Geflügeltrockenkot: | B111: 60 % TS, | C111: Kaninchenjauche: | E111: 3 % TS

Sheet MAKRO1.XLM
A1: Aufzeichnung1 (a) | B1: Aufzeichnung2 (b) | C1: Aufzeichnung3 (d) | D1: Aufzeichnung4 (e) | E1: Aufzeichnung5 (f) | F1: Aufzeichnung6 (g) | G1: Aufzeichnung7 (j) | H1: Aufzeichnung9 (m) | I1: Aufzeichnung10 (n) | J1: Aufzeichnung11 (o)
A2: =SELECT("Z8S2") -> TRUE | B2: =SELECT("Z8S2:Z8S5;Z10S2:Z10S5;Z12S2:Z12S5;Z14S2:Z14S5;Z16S2:Z16S5;Z18S2:Z18S5;Z20S2:Z20S5;Z22S2:Z22S5") -> TRUE | E2: =SELECT("Z7S2") -> FALSE | G2: =SELECT("Z7S2:Z7S6;Z10S2:Z10S6;Z12S2:Z12S6;Z14S2:Z14S6;Z16S2:Z16S6;Z18S2:Z18S6;Z20s2:z20s6;z22s2:z22s6;Z24s2:z24s6;z26s2:z26s6;z28s2:z28s6;z30s2:z30s6;z32s2:z32s6;z34s2:z34s6;z36s2:z36s6;z9s6:z37s6;z44s2:z46s5","Z18S2") -> TRUE | H2: =WORKBOOK.SELECT("Lager_Ri","Lager_Ri") -> FALSE | I2: =SELECT("Z7S2") -> TRUE | J2: =SELECT("Z8S2") -> TRUE
A3: =FORMULA("=TIPLA_S!Z26S7") -> TRUE | B3: =CLEAR(3) -> TRUE | C3: =WORKBOOK.SELECT("TIPLA_S","TIPLA_S") -> FALSE | D3: =WORKBOOK.SELECT("Lager_Schwein","Lager_Schwein") -> FALSE | E3: =FORMULA("=Tipla_Mi!Z26S3") -> FALSE | F3: =WORKBOOK.SELECT("Tipla_Mi","Tipla_Mi") -> FALSE | G3: =CLEAR(3) -> TRUE | H3: =WORKBOOK.ACTIVATE("Lager_Ri") -> FALSE | I3: =FORMULA("=Tipla_Mi!Z25S3") -> FALSE | J3: =FORMULA("=TIPLA_S!Z26s4") -> TRUE
A4: =SELECT("Z10S2") -> TRUE | B4: =SELECT("Z7S2") -> TRUE | C4: =WORKBOOK.ACTIVATE("TIPLA_S") -> FALSE | D4: =WORKBOOK.ACTIVATE("Lager_Schwein") -> FALSE | E4: =SELECT("Z10S2") -> FALSE | F4: =WORKBOOK.ACTIVATE("Tipla_Mi") -> FALSE | G4: =RETURN() -> FALSE | H4: =SELECT("Z9S1") -> TRUE | I4: =RETURN() -> TRUE | J4: =SELECT("Z10S2") -> TRUE
A5: =FORMULA("=TIPLA_S!Z28S7+TIPLA_S!Z31S7") -> TRUE | B5: =RETURN() -> TRUE | C5: =VLINE(-10) -> TRUE | D5: =SELECT("Z7S2") -> TRUE | E5: =FORMULA("=Tipla_Mi!Z33S7") -> FALSE | F5: =VLINE(-40) -> TRUE | G5: =SELECT("Z9S1") -> TRUE | H5: =RETURN() -> TRUE | I5: =SELECT("Z10S2") -> TRUE | J5: =FORMULA("=TIPLA_S!Z28s4+TIPLA_S!Z31s4") -> TRUE
A6: =SELECT("Z12S2") -> TRUE | C6: =SELECT("Z6S3") -> TRUE | D6: =RETURN() -> TRUE | E6: =SELECT("Z12S2") -> FALSE | F6: =SELECT("Z4S3") -> TRUE | G6: =RETURN() -> FALSE | I6: =FORMULA("=Tipla_Mi!Z32S7") -> FALSE | J6: =SELECT("Z12S2") -> TRUE
A7: =FORMULA("=TIPLA_S!Z34S7+TIPLA_S!Z35S7") -> TRUE | C7: =RETURN() -> TRUE | E7: =FORMULA("=Tipla_Mi!Z54S6+Tipla_Mi!Z56S6") -> FALSE | F7: =RETURN() -> TRUE | I7: =SELECT("Z12S2") -> TRUE | J7: =FORMULA("=TIPLA_S!Z34s4+TIPLA_S!Z35s4") -> TRUE
A8: =SELECT("Z14S2") -> TRUE | E8: =SELECT("Z14S2") -> FALSE | I8: =FORMULA("=Tipla_Mi!Z34S7+Tipla_Mi!Z36S7") -> FALSE | J8: =SELECT("Z14S2") -> TRUE
A9: =FORMULA("=TIPLA_S!Z38S7") -> TRUE | E9: =FORMULA("=Tipla_Mi!Z58S6") -> FALSE | I9: =SELECT("Z14S2") -> TRUE | J9: =FORMULA("=TIPLA_S!Z38s4") -> TRUE
A10: =SELECT("Z16S2") -> TRUE | E10: =SELECT("Z16S2") -> FALSE | I10: =FORMULA("=Tipla_Mi!Z38S7") -> FALSE | J10: =SELECT("Z16S2") -> TRUE
A11: =FORMULA("=TIPLA_S!Z29S7") -> TRUE | E11: =FORMULA("=Tipla_Mi!Z60S6") -> FALSE | I11: =SELECT("Z16S2") -> TRUE | J11: =FORMULA("=TIPLA_S!Z29s7") -> TRUE
A12: =SELECT("Z18S2") -> TRUE | E12: =SELECT("Z18S2") -> FALSE | I12: =FORMULA("=Tipla_Mi!Z40S7") -> FALSE | J12: =SELECT("Z18S2") -> TRUE
A13: =FORMULA("=TIPLA_S!Z40S7+TIPLA_S!Z42S7") -> TRUE | E13: =FORMULA("=Tipla_Mi!Z62S6+Tipla_Mi!Z42S3") -> FALSE | I13: =SELECT("Z18S2") -> TRUE | J13: =FORMULA("=TIPLA_S!Z40s4+TIPLA_S!Z42s4") -> TRUE
A14: =SELECT("Z20S2") -> TRUE | E14: =SELECT("Z9S1") -> FALSE | I14: =FORMULA("=Tipla_Mi!Z42S7+Tipla_Mi!Z27S3") -> FALSE | J14: =SELECT("Z20S2") -> TRUE
A15: =FORMULA("=TIPLA_S!Z44S7") -> TRUE | E15: =FORMULA("=Tipla_Mi!Z6S3") -> FALSE | I15: =SELECT("Z9S1") -> TRUE | J15: =FORMULA("=TIPLA_S!Z44s4") -> TRUE
A16: =SELECT("Z8S3") -> TRUE | E16: =SELECT("Z7S3") -> FALSE | I16: =FORMULA("=Tipla_Mi!Z5S4") -> FALSE | J16: =SELECT("Z8S3") -> TRUE
A17: =RETURN() -> TRUE | E17: =RETURN() -> FALSE | I17: =SELECT("Z7S3") -> TRUE | J17: =RETURN() -> TRUE
I18: =RETURN() -> FALSE

Sheet MAKRO2.XLM
A1: Aufzeichnung2 (q)
A2: =SELECT("Z7S2") -> TRUE
A3: =FORMULA("=[LAGERKA.XLW]Tipla_Mi!Z19S3+[LAGERKA.XLW]Tipla_Mi!Z20S3+[LAGERKA.XLW]Tipla_Mi!Z22S3+[LAGERKA.XLW]Tipla_Mi!Z23S3") -> TRUE
A4: =SELECT("Z10S2") -> TRUE
A5: =FORMULA("=[LAGERKA.XLW]Tipla_Mi!Z32S6") -> TRUE
A6: =SELECT("Z12S2") -> TRUE
A7: =FORMULA("=[LAGERKA.XLW]Tipla_Mi!Z34S6+[LAGERKA.XLW]Tipla_Mi!Z36S6") -> TRUE
A8: =SELECT("Z14S2") -> TRUE
A9: =FORMULA("=[LAGERKA.XLW]Tipla_Mi!Z38S6") -> TRUE
A10: =SELECT("Z16S2") -> TRUE
A11: =FORMULA("=[LAGERKA.XLW]Tipla_Mi!Z40S6") -> TRUE
A12: =SELECT("Z18S2") -> TRUE
A13: =FORMULA("=[LAGERKA.XLW]Tipla_Mi!Z24S3+[LAGERKA.XLW]Tipla_Mi!Z42S6") -> TRUE
A14: =RETURN() -> TRUE
